{"text_format":"1","workbook":"xlsx","n_sheets":7,"sheets":["Записка","Смета","Инструкция по заполнению","Списки","Согласование ЦБ","Структура","Должности"],"not_rendered":{"charts":0,"images":0,"macros":1,"external_links":10,"defined_names":56,"comments":0,"pivot_tables":0},"unopened":[],"bounds":{"document_bytes":16777216,"sheet_cells":100000,"rows_first":2000,"rows_last":500,"rows_between":2000,"halvings":0,"cell_chars":16384,"cell_head_chars":4096},"cells_cut":0,"cells_raw":0,"read":"whole","date_system":"1900"}

{"sheet":"Записка","index":0,"n_rows":50,"n_cols":6,"rows_kept":50,"cut":false,"hidden":false,"merged":[[49,4,49,5],[4,0,4,5],[6,3,18,3],[6,4,18,4],[6,5,18,5],[7,0,12,0],[13,0,18,0],[36,1,36,5],[39,1,39,5],[34,1,34,5],[13,1,13,2],[44,4,44,5],[28,2,28,5],[35,2,35,5],[24,0,25,0],[24,2,24,3],[47,4,47,5],[22,0,22,1],[29,2,29,5],[0,3,0,5],[6,1,6,2],[15,1,15,2],[23,1,23,5],[17,1,17,2],[18,1,18,2],[14,1,14,2],[16,1,16,2],[19,0,21,0],[30,2,30,5],[27,2,27,5],[31,2,31,5],[32,2,32,5],[25,2,25,3],[24,4,24,5],[25,4,25,5],[26,2,26,5],[46,4,46,5],[45,4,45,5],[33,1,33,5],[40,1,40,5],[41,1,41,5],[42,1,42,5],[38,4,38,5],[38,2,38,3],[37,1,37,5]]}
[null,null,null,"УТВЕРЖДАЮ"]
["Табельный номер",null,null,"Проректор"]
[null,null,null,"Простаков И.В."]
[null,null,"                                           ","подпись"]
["Служебная записка о командировании №                      от "]
[{"$f":"IF(B7=\"\",\"УКАЖИТЕ ФИО!\",\"\")","v":"УКАЖИТЕ ФИО!"}]
["ФИО (полностью) в именительном падеже",null,null,"Дата начала командировки","Дата окончания командировки","Продолжительность командировки, дней"]
["Наименование структурного подразделения (выберите из списка нажатием стрелки у правой ячейки)",null,{"$f":"IF(B8=\"\",\"\",VLOOKUP(B8,Структура!A:C,2,FALSE))","v":""}]
[null,null,{"$f":"IF(B9=\"\",\"\",VLOOKUP(B9,Структура!A:C,2,FALSE))","v":""}]
[null,null,{"$f":"IF(B10=\"\",\"\",VLOOKUP(B10,Структура!A:C,2,FALSE))","v":""}]
[null,null,{"$f":"IF(B11=\"\",\"\",VLOOKUP(B11,Структура!A:C,2,FALSE))","v":""}]
[null,null,{"$f":"IF(B12=\"\",\"\",VLOOKUP(B12,Структура!A:C,2,FALSE))","v":""}]
[null,null,{"$f":"IF(B13=\"\",\"\",VLOOKUP(B13,Структура!A:C,2,FALSE))","v":""}]
["Должность (выберите из списка)"]
[]
[]
[]
[]
[]
["Страна (выберите из списка)/Город",null,{"$f":"IF(B20=\"\",\"\",\"введите в эту ячейку город/города командирования\")","v":""},null,null,{"$f":"IF(B20=\"\",\"\",(IF(OR(D20=\"\",E20=\"\"),\"вы не заполнили какую либо дату\",E20-D20+1)))","v":""}]
[null,null,"",null,null,{"$f":"IF(B21=\"\",\"\",(IF(OR(D21=\"\",E21=\"\"),\"вы не заполнили какую либо дату\",IF(OR(D21>E20+1,D21<E20,D21=E20),\"проверьте даты\",E21-D21+1))))","v":""}]
[null,null,{"$f":"IF(B22=\"\",\"\",\"введите в эту ячейку город/города командирования\")","v":""},null,null,{"$f":"IF(B22=\"\",\"\",(IF(OR(D22=\"\",E22=\"\"),\"вы не заполнили какую либо дату\",IF(OR(D22>E21+1,D22<E21,D22=E21),\"проверьте даты\",E22-D22+1))))","v":""}]
["Общая продолжительность командировки",null,{"$f":"IF(F23=\"\",\"\",IF(F23=SUM(F20:F22),\"\",\"неверный расчет дней\"))","v":""},{"$f":"IF(AND(D20=\"\",D21=\"\",D22=\"\"),\"\",MIN(D20:D22))","v":""},{"$f":"IF(AND(E20=\"\",E21=\"\",E22=\"\"),\"\",MAX(E20:E22))","v":""},{"$f":"IF(OR(D23=\"\",E23=\"\"),\"\",E23-D23+1)","v":""}]
["Организация"]
["Основание для командировки  (выберите из списка)","Приглашение","Дата и № документа-основания",null,"Предельная сумма  финан-ия командировки, рублей"]
[]
["Сумма по смете валюта 1",{"$f":"Смета!C19","v":"Рубли"},{"$f":"SUMIF(Смета!C$18:C$25,B27,Смета!H$18:H$25)","v":0}]
["Сумма по смете валюта 2",{"$f":"Смета!C20","v":""},{"$f":"SUMIF(Смета!C$18:C$25,B28,Смета!H$18:H$25)","v":0}]
["Сумма по смете валюта 3",{"$f":"Смета!C21","v":""},{"$f":"SUMIF(Смета!C$18:C$25,B29,Смета!H$18:H$25)","v":0}]
["Сумма по смете валюта 4",{"$f":"Смета!C22","v":""},{"$f":"SUMIF(Смета!C$18:C$25,B30,Смета!H$18:H$25)","v":0}]
["Сумма по смете валюта 5",{"$f":"Смета!C23","v":""},{"$f":"SUMIF(Смета!C$18:C$25,B31,Смета!H$18:H$25)","v":0}]
["Сумма по смете валюта 6",{"$f":"Смета!C24","v":""},{"$f":"SUMIF(Смета!C$18:C$25,B32,Смета!H$18:H$25)","v":0}]
["Сумма по смете валюта 7",{"$f":"Смета!C25","v":""},{"$f":"SUMIF(Смета!C$18:C$25,B33,Смета!H$18:H$25)","v":0}]
["Источник финансирования командировки (основной)"]
["Финансирование расходов, превышающих предельную сумму выделенного финансирования за счет"]
["Оплата принимающей стороны   (выберите из списка). Поле обязательно к заполнению","Нет","Нет"]
["Цель (задание) командировки"]
["Тип мероприятия. Поле обязатель к заполнению"]
["Степень участия. Поле обязательно к заполнению",null,"Направление Поле обязательно к заполнению"]
["Возложение обязанностей на время командировки"]
["Код мероприятия дорожной карты (выберите из списка)"]
["Направление расходования средств (при финансировании за счет средств программы повышения конкурентоспособности) (выберите из списка)"]
["Дополнительная информация (заполняется при необходимости)","-"]
[]
["Подпись командируемого работника",null,null,null,"ФИО, дата"]
["Подпись непосредственного руководителя",null,null,null,"ФИО, дата"]
["Подпись курирующего проректора",null,null,null,"ФИО, дата"]
["Подпись работника, замещающего на время отсутствия",null,null,null,"ФИО, дата"]
[]
[null,null,null,null," "]

{"sheet":"Смета","index":1,"n_rows":46,"n_cols":9,"rows_kept":46,"cut":false,"hidden":false,"merged":[[44,0,44,7],[45,0,45,7],[38,0,38,7],[39,0,39,7],[40,0,40,7],[41,0,41,7],[42,0,42,7],[34,0,34,7],[35,0,35,7],[36,0,36,7],[37,0,37,7],[43,0,43,7],[0,7,0,8],[1,1,1,8],[25,1,25,4],[25,5,25,8],[31,0,31,7],[28,0,28,8],[27,0,27,8],[20,2,20,4],[21,2,21,4],[22,2,22,4],[23,2,23,4],[24,2,24,4]]}
[null,null,null,null,null,null,null,"Приложение №1 \nк Положению о служебных командировках НИУ ВШЭ. Часть 2."]
[null,"Смета командировки"]
[null,{"$f":"Записка!$B$7","v":0}]
["п/п","Назначение","КВР",null,"валюта","Стоимость","Продолжительность","Сумма","Кодировка источника финансирования (заполняется работниками ПФУ)"]
[1,"Суточные (кроме дня возвращения). Страна 1",212,{"$f":"IF(E5=\"\",\"\",IF(COUNTIF(E$4:E5,E5)=1,MAX(D$4:D4)+1,\"\"))","v":""},{"$f":"IF(Записка!B20=\"\",\"\",VLOOKUP(Записка!B20,Списки!W$2:Y$229,2,FALSE))","v":""},{"$f":"IF(E5=\"\",0,IF(OR(Записка!C$36=\"Все расходы\",Записка!B$36=Списки!L20,Записка!C$36=Списки!L17,Записка!C$36=Списки!L29,Записка!C$36=Списки!L30,Записка!C$36=Списки!L31,Записка!C$36=Списки!L32),0,IF(Записка!B20=\"Российская Федерация\",VLOOKUP(Записка!B$36,Списки!L$2:N$28,2,FALSE)*700,VLOOKUP(Записка!B$36,Списки!L$1:N$28,3,FALSE)*VLOOKUP(Записка!B20,Списки!W$2:Y$217,3,FALSE))))","v":0},{"$f":"IF(Записка!F23=\"\",0,IF(F6=0,Записка!F20-1,Записка!F20))","v":0},{"$f":"IF(E5=\"\",0,F5*G5)","v":0}]
[null,"Суточные (кроме дня возвращения). Страна 2",212,{"$f":"IF(E6=\"\",\"\",IF(COUNTIF(E$4:E6,E6)=1,MAX(D$4:D5)+1,\"\"))","v":""},{"$f":"IF(Записка!B21=\"\",\"\",VLOOKUP(Записка!B21,Списки!W$2:Y$229,2,FALSE))","v":""},{"$f":"IF(E6=\"\",0,IF(OR(Записка!C$36=\"Все расходы\",Записка!B$36=Списки!L21,Записка!C$36=Списки!L18,Записка!C$36=Списки!L30,Записка!C$36=Списки!L31,Записка!C$36=Списки!L32,Записка!C$36=Списки!L33),0,IF(Записка!B21=\"Российская Федерация\",VLOOKUP(Записка!B$36,Списки!L$2:N$28,2,FALSE)*700,VLOOKUP(Записка!B$36,Списки!L$1:N$28,3,FALSE)*VLOOKUP(Записка!B21,Списки!W$2:Y$217,3,FALSE))))","v":0},{"$f":"IF(F6=0,0,IF(F7=0,Записка!F21-1,Записка!F21))","v":0},{"$f":"IF(E6=\"\",0,F6*G6)","v":0}]
[null,"Суточные (кроме дня возвращения). Страна 3",212,{"$f":"IF(E7=\"\",\"\",IF(COUNTIF(E$4:E7,E7)=1,MAX(D$4:D6)+1,\"\"))","v":""},{"$f":"IF(Записка!B22=\"\",\"\",VLOOKUP(Записка!B22,Списки!W$2:Y$229,2,FALSE))","v":""},{"$f":"IF(E7=\"\",0,IF(OR(Записка!C$36=\"Все расходы\",Записка!B$36=Списки!L22,Записка!C$36=Списки!L19,Записка!C$36=Списки!L31,Записка!C$36=Списки!L32,Записка!C$36=Списки!L33,Записка!C$36=Списки!L34),0,IF(Записка!B22=\"Российская Федерация\",VLOOKUP(Записка!B$36,Списки!L$2:N$28,2,FALSE)*700,VLOOKUP(Записка!B$36,Списки!L$1:N$28,3,FALSE)*VLOOKUP(Записка!B22,Списки!W$2:Y$214,3,FALSE))))","v":0},{"$f":"IF(F7=0,0,Записка!F22-1)","v":0},{"$f":"IF(E7=\"\",0,F7*G7)","v":0}]
[2,"Суточные (день возвращения)",212,{"$f":"IF(E8=\"\",\"\",IF(COUNTIF(E$4:E8,E8)=1,MAX(D$4:D7)+1,\"\"))","v":1},"Рубли",{"$f":"IF(Записка!F23=\"\",0,700)","v":0},{"$f":"IF(Записка!F23=\"\",0,1)","v":0},{"$f":"F8*G8","v":0}]
[3,"Проезд",212,{"$f":"IF(E9=\"\",\"\",IF(COUNTIF(E$4:E9,E9)=1,MAX(D$4:D8)+1,\"\"))","v":""},null,"X","X"]
[4,"Трансферт аэропорт-отель-аэропорт",212,{"$f":"IF(E10=\"\",\"\",IF(COUNTIF(E$4:E10,E10)=1,MAX(D$4:D9)+1,\"\"))","v":""},null,"X","X"]
[5,"Проживание. Страна 1",212,{"$f":"IF(E11=\"\",\"\",IF(COUNTIF(E$4:E11,E11)=1,MAX(D$4:D10)+1,\"\"))","v":""},{"$f":"IF(Записка!B20=\"\",\"\",VLOOKUP(Записка!B20,Списки!F$2:H$214,2,FALSE))","v":""},{"$f":"IF(E11=\"\",\"\",IF(OR(Записка!B$36=Списки!L25,Записка!C$36=Списки!L13,Записка!C$36=Списки!L14,Записка!C$36=Списки!L15,Записка!C$36=Списки!L16,Записка!C$36=Списки!L17,Записка!C$36=Списки!L18),0,VLOOKUP(Записка!B20,Списки!F$2:H$214,3,0)))","v":""},{"$f":"IF(Записка!F23=\"\",0,IF(E12=\"\",Записка!F20-1,Записка!F20))","v":0},{"$f":"IF(F11=\"\",0,F11*G11)","v":0}]
[null,"Проживание. Страна 2",212,{"$f":"IF(E12=\"\",\"\",IF(COUNTIF(E$4:E12,E12)=1,MAX(D$4:D11)+1,\"\"))","v":""},{"$f":"IF(Записка!B21=\"\",\"\",VLOOKUP(Записка!B21,Списки!F$2:H$214,2,FALSE))","v":""},{"$f":"IF(E12=\"\",\"\",IF(OR(Записка!B$36=Списки!L26,Записка!C$36=Списки!L14,Записка!C$36=Списки!L15,Записка!C$36=Списки!L16,Записка!C$36=Списки!L17,Записка!C$36=Списки!L18,Записка!C$36=Списки!L19),0,VLOOKUP(Записка!B21,Списки!F$2:H$214,3,0)))","v":""},{"$f":"IF(E12=\"\",\"\",IF(E13=\"\",Записка!F21-1,Записка!F21))","v":""},{"$f":"IF(F12=\"\",0,F12*G12)","v":0}]
[null,"Проживание. Страна 3",212,{"$f":"IF(E13=\"\",\"\",IF(COUNTIF(E$4:E13,E13)=1,MAX(D$4:D12)+1,\"\"))","v":""},{"$f":"IF(Записка!B22=\"\",\"\",VLOOKUP(Записка!B22,Списки!F$2:H$214,2,FALSE))","v":""},{"$f":"IF(E13=\"\",\"\",IF(OR(Записка!B$36=Списки!L27,Записка!C$36=Списки!L15,Записка!C$36=Списки!L16,Записка!C$36=Списки!L17,Записка!C$36=Списки!L18,Записка!C$36=Списки!L19,Записка!C$36=Списки!L20),0,VLOOKUP(Записка!B22,Списки!F$2:H$214,3,0)))","v":""},{"$f":"IF(E13=\"\",\"\",Записка!F22-1)","v":""},0]
[6,"Оргвзнос",212,{"$f":"IF(E14=\"\",\"\",IF(COUNTIF(E$4:E14,E14)=1,MAX(D$4:D13)+1,\"\"))","v":""},null,"X","X"]
[7,"Виза",212,{"$f":"IF(E15=\"\",\"\",IF(COUNTIF(E$4:E15,E15)=1,MAX(D$4:D14)+1,\"\"))","v":""},null,"X","X"]
[8,"Медицинская страховка",212,{"$f":"IF(E16=\"\",\"\",IF(COUNTIF(E$4:E16,E16)=1,MAX(D$4:D15)+1,\"\"))","v":""},null,"X","X"]
[null,null,null,{"$f":"IF(E17=\"\",\"\",IF(COUNTIF(E$4:E17,E17)=1,MAX(D$4:D16)+1,\"\"))","v":""},null,null,null,"Сумма в валюте","Сумма в рублях "]
[null,"ИТОГО",null,null,null,null,null,{"$f":"SUMIF(E$5:E$16,C18,H$5:H$16)","v":0}]
[null,null,{"$f":"IF(MAX(колич)<ROW(1:1),\"\",VLOOKUP(ROW(1:1),валюты,2))","v":"Рубли"},null,null,null,null,0,{"$f":"IF(C19=\"\",0,VLOOKUP(Смета!C19,Списки!J$16:K$50,2,FALSE)*H19)","v":0}]
[null,null,"",null,null,null,null,0,{"$f":"IF(C20=\"\",0,VLOOKUP(Смета!C20,Списки!J$16:K$50,2,FALSE)*H20)","v":0}]
[null,null,"",null,null,null,null,0,{"$f":"IF(C21=\"\",0,VLOOKUP(Смета!C21,Списки!J$16:K$50,2,FALSE)*H21)","v":0}]
[null,null,"",null,null,null,null,0,{"$f":"IF(C22=\"\",0,VLOOKUP(Смета!C22,Списки!J$16:K$50,2,FALSE)*H22)","v":0}]
[null,null,"",null,null,null,null,0,{"$f":"IF(C23=\"\",0,VLOOKUP(Смета!C23,Списки!J$16:K$50,2,FALSE)*H23)","v":0}]
[null,null,"",null,null,null,null,0,{"$f":"IF(C24=\"\",0,VLOOKUP(Смета!C24,Списки!J$16:K$50,2,FALSE)*H24)","v":0}]
[null,null,"",null,null,null,null,0,{"$f":"IF(C25=\"\",0,VLOOKUP(Смета!C25,Списки!J$16:K$50,2,FALSE)*H25)","v":0}]
[null,"Оплата дней нахождения в командировке по среднему за счет (заполняется работниками ПФУ)"]
[]
["УБЕДИТЕЛЬНАЯ ПРОСЬБА НЕ ДОБАВЛЯТЬ И НЕ УБИРАТЬ СТРОКИ, ИНАЧЕ НЕ БУДЕТ ПРОИЗВЕДЕН РАСЧЕТ СМЕТЫ. Для \"нестандартной\" информации предусмотрено поле \"Дополнительная информация\" в служебной записке"]
["ВНИМАНИЕ: если не будут заполнены обязательные поля в служебной записке, расчет сметы не будет произведен "]
[]
[]
["Суточные (дополнительные расходы, связанные с проживанием вне места постоянного жительства) возмещаются работникам за каждый день нахождения в служебной командировке, включая выходные и нерабочие праздничные дни, в следующих размерах:"]
["- 700 руб. - при направлении в служебную командировку по территории РФ;"]
["- при направлении в командировку за пределы территории РФ проставляется в соответствии с установленными нормами."]
["При следовании работника с территории Российской Федерации дата пересечения государственной границы Российской Федерации включается в дни, за которые суточные выплачиваются в соответствии с установленными для конкретной страны нормам, а при следовании на территорию Российской Федерации дата пересечения государственной границы Российской Федерации включается в дни, за которые суточные выплачиваются в сумме 700 рублей."]
["При командировках за границу:"]
["* если принимающая сторона предоставляет то суточные положены 30% от суммы  в соответствии с установленными для конкретной страны нормам."]
["* если принимающая сторона берет на себя все местные расходы, то суточные НИУ ВШЭ не предоставляются."]
["При командировках по России:"]
["* если принимающая сторона предоставляет питание или оплачивает все местные расходы, то суточные НИУ ВШЭ не предоставляются."]
["Сумма проезда проставляется приблизительно на основании информации о стоимости билетов на проезд до места командирования (о разрешенных НИУ ВШЭ стандартах по проезду см. в п. 7.3 Положения о командировках)"]
["Сумма трансфера проставляется приблизительно (например: 100 евро, 100 долл., 100 англ.фунт.стер.)"]
["Сумма проживания проставляется по нормам, указанным в Приказе Минфина РФ от 12 июля 2006 г. № 92н  (о разрешенных НИУ ВШЭ стандартах по проживанию см. в п. 7.6 Положения о командировках). Сумма за проживание считается по количеству ночей."]
[" Стоимость оргвзноса (если он есть) проставляется на основании информации, содержащейся либо в приглашении, либо на сайте мероприятия, для участия в котором сотрудник направляется в командировку."]
["Стоимость визы (только при направлении в загран.командировку) проставляется приблизительно на основании информации о стоимости визы в общедоступных источниках."]
[" Сумма мед.страховки (только при направлении в загран.командировку) проставляется приблизительно на основании информации о стоимости мед.страховки в общедоступных источниках."]

{"sheet":"Инструкция по заполнению","index":2,"n_rows":34,"n_cols":6,"rows_kept":34,"cut":false,"hidden":false,"merged":[[19,1,19,5],[23,1,25,5],[18,1,18,5],[11,5,13,5],[11,3,11,4],[21,1,21,5],[22,1,22,5],[11,0,13,0],[14,1,14,5],[15,1,15,5],[16,1,16,5],[17,1,17,5],[12,3,13,4],[11,2,13,2],[11,1,13,1],[0,2,0,5],[26,1,26,5],[28,4,28,5],[29,4,29,5],[30,4,30,5],[20,1,20,5],[2,0,2,5],[4,1,4,2],[4,3,10,3],[4,4,10,4],[4,5,10,5],[5,0,7,0],[8,0,10,0],[5,1,7,1],[5,2,7,2],[8,1,10,2]]}
[null,null,"Приложение №1 \nк Положению о служебных командировках НИУ ВШЭ. Часть 3.\nИнструкция по заполнению Служебной записки о командировании."]
[]
["Служебная записка о командировании"]
[]
["ФИО (полностью) в именительном падеже","Заполняется полностью в именительном падеже ",null,"Дата начала командировки","Дата окончания командировки","Продолжительность командировки, дней"]
["Наименование структурного подразделения (выберите из списка нажатием стрелки у правой ячейки)","Если работник работает в нескольких подразделениях, указываются все подразделения. Первым указывается подразделение, где работник занимает основную ставку","Учетный шифр присваивается автоматически при выборе подразделения из списка"]
[]
[]
["Должность (выберите из списка)","Если работник работает в нескольких подразделениях, указываются все должности, занимаемые в соответствующих подразделениях. Последовательность указания должностей должна совпадать с последовательностью подразделений"]
[]
[]
["Страна (выберите из списка)/Город","Указывается страна/страны командирования. Каждая страна - в отдельной ячейке. Внимание: для Великобритании, США и стран СНГ и Балтии для отдельных городов существуют свои нормы на оплату проживания. При выборе таких стран из списка обращайте внимание - если указан город, то для него существуют отдельные нормы","Если в одной стране посещается несколько городов, то в каждой строке указывается одна и та же страна, но разные города","вводится в формате ДД.ММ.201Г. Даты должны быть определены с учетом дороги",null,"Расссчитывается автоматически"]
[null,null,null,"дата продолжения командировки не может быть ранее окончания даты окончания командировки в предшествующем городе/стране"]
[]
["Организация","Указывается принимающая организация"]
["Основание для командировки  (выберите из списка)","Выбирается из представленного списка, если есть отличия, необходимо ввести их в поле \"Дополнительная информация\""]
["Дата и номер документа-основания","Указывается номер и дата документа, являющегося основанием для командирования"]
["Предельная сумма финансирования командировки, рублей","Указывается из документа-основания при наличии информации"]
["Сумма по смете, рублей","Рассчитывается автоматически  из заполненных полей сметы"]
["Финансирование расходов, превышающих предельную сумму выделенного финансирования за счет","Заполняется в случае превышения сметных расходов над выделенным финансированием.  Указываются дополнительные источники финансирования для покрытия разрыва между сметой и выделенным финансированием"]
["Оплата принимающей стороны   (выберите из списка). Поле обязательно к заполнению","Поле обязательно к заполнению. Выбирается из списка. Информация используется при расчете суточных в смете"]
["Цель (задание) командировки","Краткое описание цели командировки"]
["Возложение обязанностей на время командировки","Указывается ФИО и должность замещающего работника"]
["Источник финансирования командировки","Заполняется РАБОТНИКОМ из документа-основания"]
["Код мероприятия дорожной карты"]
["Направление расходования средств (при финансировании за счет средств программы повышения конкурентоспособности)"]
["Дополнительная информация (заполняется при необходимости)"]
[]
["Подпись командируемого работника",null,null,null,"ФИО, дата"]
["Подпись работника, замещающего на время отсутствия",null,null,null,"ФИО, дата"]
["Подпись непосредственного руководителя руководителя","В случае, если командируемый является сотрудником нескольких структурных подразделений, записка заверяется по основному месту оформления",null,null,"Должность, ФИО, дата"]
["Поля, в служебной записке и смете закрашенные серым цветом - выбор из списка"]
["Поля в служебной записке и смете, закрашенные зеленым цветом - рассчитываются автоматически"]
["Остальные поля заполняются работником"]

{"sheet":"Списки","index":3,"n_rows":281,"n_cols":35,"rows_kept":281,"cut":false,"hidden":true,"merged":[[0,6,0,7],[0,23,0,24]]}
["Наименование подразделения","Учетный шифр",null,"Должность",null,"Страна","Предельная норма возмещения по проживанию",null,null,"Основание для командировки",null,"Оплата принимающей стороны","Российская Федерация","За границей",null,"Валюта",null,"Код мероприятия ДК",null,"Направление расходования средств субсидии",null,null,"Страна","Предельная норма возмещения по суточным",null,null,"Валюта суточных",null,"Степень участия",null,"Тип мобильности",null,"Тип мероприятия",null,"Направление"]
[null,null,null,"Агент по снабжению",null,"Российская Федерация","Рубли",2500,null,"Выписка из протокола заседания Бюро Совета Программы \"Научный фонд\"",null,"Нет",1,1,null,"Рубли",null,null,null,null,null,null,"Российская Федерация","Рубли",700,null,"Рубли",null,"Преподаватель",null,"научные мероприятия",null,"Программа двух дипломов",null,"Матем. и естественные науки"]
[null,null,null,"Администратор",null,"Абхазия","Доллары США  ",95,null,"Выписка из протокола заседания Комиссии по отбору заявок на поддержку и развитие международных научных партнёрств",null,"Все расходы",0,0,null,"Английские фунты стерлинги",null,"1.1.1. Создание и поддержка центров передовых исследований и международных лабораторий",null,"1. Реализация мер по формированию кадрового резерва руководящего состава вузов и привлечению на руководящие должности специалистов, имеющих опыт работы в ведущих иностранных и российских университетах и научных организациях;",null,null,"Абхазия","Доллары США  ",54,null,"Доллары США  ",null,"Докладчик",null,"экспертиза/аккредитация образовательных продуктов",null,"Программа обмена",null,"Компьютерные науки"]
[null,null,null,"Администратор дежурный",null,"Австралия","Доллары США  ",130,null,"Выписка из протокола заседания научной комиссии",null,"Виза",0,0,null,"Датские кроны",null,"1.1.2. Развитие центров перспективных исследований по актуальным научным направлениям",null,"2.  Реализация мер по привлечению в вузы молодых научно-педагогических работников, имеющих опыт работы в научно-исследовательской и образовательной сферах в ведущих иностранных и российских университетах и научных организациях;",null,null,"Австралия","Доллары США  ",60,null,null,null,"Исследователь",null,"исследования",null,"Образовательная стажировка / практика",null,"Технические науки"]
[null,null,null,"Администратор-кассир",null,"Австрия","Доллары США  ",120,null,"Выписка из протокола заседания совета по повышению квалификации",null,"Виза, мед страховка",0,0,null,"Доллары США  ",null,"1.2.1. Развитие фундаментальных и эмпирических научных исследований",null,"3.  Реализация программ международной и внутрироссийской академической мобильности научно-педагогических работников в форме стажировок, повышения квалификации, профессиональной переподготовки и в других формах;",null,null,"Австрия","Доллары США  ",66,null,null,null,"Эксперт / Консультант",null,"экспертиза научных исследований",null,"Курс лекций",null,"Сельское хозяйство"]
[null,null,null,"Аналитик",null,"Азербайджан (Баку)","Доллары США  ",75,null,"Иное",null,"Виза, трансфер",0,0,null,"Евро         ",null,"1.2.2. Организация прикладных научных исследований в интересах власти, бизнеса и расширение участия в грантовых программах",null,"4. Реализация мер по совершенствованию деятельности аспирантуры и докторантуры;",null,null,"Азербайджан (Баку)","Доллары США  ",57,null,null,null,"Участник / Слушатель",null,"стажировка",null,"Научно-образовательная школа",null,"Медицинские науки"]
[null,null,null,"Аналитик 1 категории",null,"Азербайджан","Доллары США  ",60,null,"Письменное распоряжение руководителя",null,"Медицинская страховка",0,0,null,"Норвежские кроны",null,"1.2.3. Мониторинг и форсайт перспективных рынков и областей прикладных научных исследований и разработок",null,"5. Реализация мер по поддержке студентов, аспирантов, стажеров, молодых научно-педагогических работников;",null,null,"Азербайджан ","Доллары США  ",57,null,null,null,"Организатор / Модератор",null,"повышение квалификации",null,"Повышение квалификации",null,"Искусство и культура"]
[null,null,null,"Архивариус",null,"Албания","Доллары США  ",150,null,"План работы факультета/кафедры",null,"Проезд",0,0,null,"Шведские  кроны",null,"1.2.4. Развитие прикладных научных исследований и разработок в интересах Администрации Президента и Правительства Российской Федерации",null,"6. Внедрение в вузах новых образовательных программ совместно с ведущими иностранными и российскими университетами и научными организациями;",null,null,"Албания","Доллары США  ",67,null,null,null,"Иное",null,"профессиональная переподготовка",null,"Профессиональная переподготовка",null,"Гуманитарные науки"]
[null,null,null,"Ассистент",null,"Алжир","Доллары США  ",85,null,"Приглашение",null,"Проезд, виза",0,0,null,"Швейцарские  франки     ",null,"1.2.5. Поддержка развития  международных научных партнерств",null,"7. Осуществление мер по привлечению студентов из ведущих иностранных университетов для обучения в российских вузах, в том числе путем реализации партнерских образовательных программ с иностранными университетами и ассоциациями университетов;",null,null,"Алжир","Доллары США  ",65,null,null,null,null,null,"образовательные мероприятия",null,"Конкурс / олимпиада",null,"Психология"]
[null,null,null,"Ассистент звукорежиссера",null,"Ангола","Доллары США  ",140,null,"Устное распоряжение руководителя",null,"Проезд, мед страховка",0,0,null,"Японские иены ",null,"1.3.1. Развитие системы международной экспертизы исследовательских проектов и научных коллективов",null,"8. Реализация в рамках планов проведения научно-исследовательских работ в соответствии с программой фундаментальных научных исследований в Российской Федерации на долгосрочный период в вузах, а также с учетом приоритетных международных направлений фундаментальных и прикладных исследований:",null,null,"Ангола","Доллары США  ",80,null,null,null,null,null,"организация партнерств",null,"Однодневное образовательное мероприятие",null,"Педагогика"]
[null,null,null,"Бармен",null,"Андорра","Евро         ",140,null,null,null,"Проезд, суточные",0,0,null,null,null,"1.3.2. Развитие системы лингвистической поддержки публикаций на иностранном языке",null,"8.1. Научно-исследовательских проектов с привлечением к руководству ведущих иностранных и российских ученых и (или) совместно с перспективными научными организациями, в том числе с возможностью создания структурных подразделений в вузах;",null,null,"Андорра","Доллары США  ",62,null,null,null,null,null,"продвижение ВШЭ",null,"Исследования / научные проекты",null,"Социальные науки"]
[null,null,null,"Библиограф",null,"Антигуа и Барбуда","Доллары США  ",100,null,null,null,"Проезд, трансфер",0,0,null,null,null,"1.3.3. Вывод журналов ВШЭ на глобальный рынок",null,"8.2.Научно-исследовательских и опытно-конструкторских проектов совместно с российскими и международными высокотехнологичными организациями, в том числе с возможностью создания структурных подразделений в вузах",null,null,"Антигуа и Барбуда","Доллары США  ",69,null,null,null,null,null,"Рабочая встреча",null,"Научная стажировка / практика",null,"Экономика и бизнес"]
[null,null,null,"Библиограф 1 категории",null,"Аргентина","Доллары США  ",130,null,null,null,"Проживание",0,0,null,null,null,"1.3.4. Продвижение бренда Университета в целях повышения его узнаваемости в качестве международного научного центра среди широкой общественности",null,null,null,null,"Аргентина","Доллары США  ",64,null,null,null,null,null,"Служебное задание",null,"Научная конференция и ее аналоги"]
[null,null,null,"Библиотекарь",null,"Армения (Ереван)","Доллары США  ",110,null,null,null,"Проживание, виза",0,0,null,null,null,"1.4.1. Развитие системы профессионализации менеджмента научных исследований",null,null,null,null,"Армения (Ереван)","Доллары США  ",57,null,null,null,null,null,null,null,"Экспертиза / экспертный совет"]
[null,null,null,"Библиотекарь 1 категории",null,"Армения","Доллары США  ",80,null,"Курсы валют ЦБ","Рублей/ед валюты","Проживание, мед страховка",0,0,null,null,null,"1.4.2. Развитие системы эффективной оценки публикационной активности научно-педагогических работников ВШЭ",null,null,null,null,"Армения","Доллары США  ",57,null,null,null,null,null,null,null,"Однодневное научное мероприятие"]
[null,null,null,"Библиотекарь 2 категории",null,"Афганистан","Доллары США  ",100,null,"Английские фунты стерлинги",90,"Проживание, проезд",0,0,null,"Должность адресата","ФИО","1.5.1. Формирование лабораторий исследовательского кластера прорывных инженерных технологий и расширение спектра инженерно-ориентированных исследований",null,null,null,null,"Афганистан","Доллары США  ",80,null,null,null,null,null,null,null,"Организация академических партнерств"]
[null,null,null,"Буфетчик",null,"Багамские острова","Доллары США  ",100,null,"Датские кроны",10,"Проживание, суточные",0,0,null,null,null,"1.5.2. Создание инжиниринговых центров",null,null,null,null,"Багамские острова","Доллары США  ",64,null,null,null,null,null,null,null,"Презентация "]
[null,null,null,"Бухгалтер",null,"Бангладеш","Доллары США  ",100,null,"Доллары США  ",65,"Проживание, трансфер",0,0,null,null,null,"2.1.1. Развитие линейки глобально конкурентоспособных образовательных продуктов",null,null,null,null,"Бангладеш","Доллары США  ",67,null,null,null,null,null,null,null,"Выставка / ярмарка"]
[null,null,null,"Бухгалтер 1 категории",null,"Барбадос","Доллары США  ",100,null,"Евро         ",73,"Трансфер",0,0,null,null,null,"2.1.2. Расширение участия ВШЭ в глобальных образовательных онлайн-проектах: продвижение образовательных продуктов, их авторов, имеющих международное признание",null,null,null,null,"Барбадос","Доллары США  ",68,null,null,null,null,null,null,null,"Профориентационное мероприятие"]
[null,null,null,"Бухгалтер 2 категории",null,"Бахрейн","Доллары США  ",90,null,"Норвежские кроны",8,"Суточные",0,0,null,null,null,"2.1.3. Развитие системы оценки эффективности и качества образовательных программ Университета",null,null,null,null,"Бахрейн","Доллары США  ",66,null,null,null,null,null,null,null,"Рабочая встреча (административная)"]
[null,null,null,"Ведущий аналитик",null,"Белиз","Доллары США  ",100,null,"Рубли",1,"Питание",0,0.3,null,null,null,"2.1.4. Расширение цифровой компоненты подготовки студентов",null,null,null,null,"Белиз","Доллары США  ",59,null,null,null,null,null,null,null,"Служебное задание"]
[null,null,null,"Ведущий библиограф",null,"Белоруссия (Минск)","Доллары США  ",120,null,"Шведские  кроны",7,"Питание, виза",0,0.3,null,null,null,"2.1.5. Расширение проектной компоненты подготовки магистров",null,null,null,null,"Белоруссия (Минск)","Доллары США  ",57,null,null,null,null,null,null,null,"Иное"]
[null,null,null,"Ведущий библиотекарь",null,"Белоруссия","Доллары США  ",80,null,"Швейцарские  франки     ",67,"Питание, мед страховка",0,0.3,null,null,null,"2.1.6. Расширение линейки программ дополнительного профессионального образования,  предлагаемых студентам ВШЭ",null,null,null,null,"Белоруссия","Доллары США  ",57]
[null,null,null,"Ведущий бухгалтер",null,"Бельгия","Евро         ",150,null,"Японские иены ",0.6,"Питание, проезд",0,0.3,null,null,null,"2.2.1. Внедрение системы KPI академических руководителей образовательных программ",null,null,null,null,"Бельгия","Доллары США  ",64]
[null,null,null,"Ведущий дизайнер",null,"Бенин","Доллары США  ",95,null,null,null,"Питание, проживание",0,0.3,null,null,null,"2.2.2. Развитие мультикультурной и англоязычной составляющей в модели работы учебных офисов",null,null,null,null,"Бенин","Доллары США  ",66]
[null,null,null,"Ведущий инженер",null,"Бермудские Острова","Доллары США  ",100,null,null,null,"Питание, суточные",0,0,null,null,null,"2.3.1. Развитие системы аспирантских школ - внедрение новой модели аспирантской подготовки",null,null,null,null,"Бермудские Острова","Доллары США  ",69]
[null,null,null,"Ведущий инженер по охране труда",null,"Болгария","Доллары США  ",110,null,null,null,"Питание, трансфер",0,0.3,null,null,null,"2.3.2. Развитие программы \"Академическая аспирантура\" (Structured PhD program)  и интернационализация аспирантуры",null,null,null,null,"Болгария","Доллары США  ",55]
[null,null,null,"Ведущий инженер-программист",null,"Боливия","Доллары США  ",80,null,null,null,"Нет",0,0,null,null,null,"3.1.1. Интеграция модулей предпринимательских компетенций в основные образовательные программы ВШЭ",null,null,null,null,"Боливия","Доллары США  ",63]
[null,null,null,"Ведущий математик",null,"Босния и Герцеговина","Доллары США  ",110,null,null,null,"Суточные",0,0,null,null,null,"3.1.2. Развитие предпринимательских компетенций у научно-педагогических работников ВШЭ",null,null,null,null,"Босния и Герцеговина","Доллары США  ",60]
[null,null,null,"Ведущий научный сотрудник",null,"Ботсвана","Доллары США  ",120,null,null,null,"Суточные, виза",0,0,null,null,null,"3.2.1. Определение и реализация комплекса мер по выбору модели коммерциализации и выводу на рынок рекомендованных к коммерциализации РИД",null,null,null,null,"Ботсвана","Доллары США  ",64]
[null,null,null,"Ведущий программист",null,"Бразилия","Доллары США  ",160,null,null,null,"Суточные, мед страховка",0,0,null,null,null,"3.2.2. Аккумуляция и развитие экспертного ресурса по ключевым отраслям научных исследований ВШЭ, формирование карты лабораторного комплекса ВШЭ",null,null,null,null,"Бразилия","Доллары США  ",58]
[null,null,null,"Ведущий психолог",null,"Бруней","Доллары США  ",100,null,null,null,"Суточные, трансфер",0,0,null,null,null,"3.3.1. Расширение участия ВШЭ в ключевых событиях предпринимательской тематики (конференции, семинары, форумы, деловые игры и т.д.)",null,null,null,null,"Бруней","Доллары США  ",57]
[null,null,null,"Ведущий редактор",null,"Буркина-Фасо","Доллары США  ",140,null,null,null,null,null,null,null,null,null,"3.3.2. Развитие конкурсных механизмов поддержки предпринимательства",null,null,null,null,"Буркина-Фасо","Доллары США  ",72]
[null,null,null,"Ведущий специалист",null,"Бурунди","Доллары США  ",100,null,null,null,null,null,null,null,null,null,"3.4.1. Создание Открытого центра предпринимательства и инноваций ВШЭ на площадке Университета",null,null,null,null,"Бурунди","Доллары США  ",74]
[null,null,null,"Ведущий специалист по связям с общественностью",null,"Вануату","Евро         ",120,null,null,null,null,null,null,null,null,null,"3.4.2. Развитие экосистемы инноваций и предпринимательства вокруг ВШЭ, в том числе развитие программ информационного обмена, партнерств с участниками глобальной инновационной среды",null,null,null,null,"Вануату","Доллары США  ",68]
[null,null,null,"Ведущий экономист",null,"Великобритания (Лондон)","Английские фунты стерлинги",120,null,null,null,null,null,null,null,null,null,"4.1.1. Расширение присутствия в странах Содружества независимых государств, Центральной и Восточной Европы, в других странах",null,null,null,null,"Великобритания (Лондон)","Доллары США  ",69]
[null,null,null,"Ведущий эксперт",null,"Великобритания","Английские фунты стерлинги",100,null,null,null,null,null,null,null,null,null,"4.1.2. Развитие \"ресурсных\" центров в странах Содружества независимых государств, Центральной и Восточной Европы, в других странах",null,null,null,null,"Великобритания","Доллары США  ",69]
[null,null,null,"Ведущий электроник",null,"Венгрия","Доллары США  ",100,null,null,null,null,null,null,null,null,null,"4.1.3. Развитие механизмов привлечения иностранных абитуриентов, в том числе через участие в международных образовательных ярмарках",null,null,null,null,"Венгрия","Доллары США  ",61]
[null,null,null,"Ведущий юрисконсульт",null,"Венесуэла","Доллары США  ",100,null,null,null,null,null,null,null,null,null,"4.1.4. Формирование образа динамично развивающегося современного университета среди потенциальных абитуриентов",null,null,null,null,"Венесуэла","Доллары США  ",64]
[null,null,null,"Вице-президент",null,"Вьетнам","Доллары США  ",100,null,null,null,null,null,null,null,null,null,"4.1.5. Продвижение международного бренда ВШЭ в сети Интернет среди иностранной аудитории",null,null,null,null,"Вьетнам","Доллары США  ",63]
[null,null,null,"Водитель автомобиля",null,"Габон","Доллары США  ",130,null,null,null,null,null,null,null,null,null,"4.2.1. Привлечение талантливых студентов из-за рубежа на специализированные программы включенного обучения",null,null,null,null,"Габон","Доллары США  ",70]
[null,null,null,"Выпускающий",null,"Гаити","Доллары США  ",80,null,null,null,null,null,null,null,null,null,"4.2.2. Развитие системы студенческих экспедиций в города России",null,null,null,null,"Гаити","Доллары США  ",61]
[null,null,null,"Гардеробщик",null,"Гайана","Доллары США  ",110,null,null,null,null,null,null,null,null,null,"4.2.3. Привлечение талантливой молодежи из зарубежных стран: олимпиады и конкурсы  ",null,null,null,null,"Гайана","Доллары США  ",67]
[null,null,null,"Главный аналитик",null,"Гамбия","Доллары США  ",110,null,null,null,null,null,null,null,null,null,"4.2.4. Развитие Лицея ВШЭ как модельного образца старшей школы нового поколения ",null,null,null,null,"Гамбия","Доллары США  ",62]
[null,null,null,"Главный библиограф",null,"Гана","Доллары США  ",110,null,null,null,null,null,null,null,null,null,"4.2.5. Расширение линейки предметных олимпиад, конкурсов проектных работ для школьников, организованных ВШЭ",null,null,null,null,"Гана","Доллары США  ",66]
[null,null,null,"Главный библиотекарь",null,"Гватемала","Доллары США  ",90,null,null,null,null,null,null,null,null,null,"4.2.6. Привлечение талантливой молодежи в магистратуру",null,null,null,null,"Гватемала","Доллары США  ",68]
[null,null,null,"Главный бухгалтер",null,"Гвинея","Доллары США  ",150,null,null,null,null,null,null,null,null,null,"4.2.7. Совершенствование дифференцированной системы поддержки, адаптационных мероприятий и сервисов для студентов, в том числе иностранных",null,null,null,null,"Гвинея","Доллары США  ",66]
[null,null,null,"Главный механик",null,"Республика Гвинея-Бисау","Доллары США  ",50,null,null,null,null,null,null,null,null,null,"4.3.1. Развитие Распределенного лицея как образовательной сети ВШЭ",null,null,null,null,"Республика Гвинея-Бисау","Доллары США  ",91]
[null,null,null,"Главный научный сотрудник",null,"Германия","Евро         ",200,null,null,null,null,null,null,null,null,null,"4.3.2. Развитие программ \"Партнерские школы\" и \"Региональные центры\"",null,null,null,null,"Германия","Доллары США  ",65]
[null,null,null,"Главный редактор",null,"Гибралтар","Доллары США  ",60,null,null,null,null,null,null,null,null,null,"4.3.3. Развитие и формирование новых партнерств с зарубежными образовательными организациями",null,null,null,null,"Гибралтар","Доллары США  ",69]
[null,null,null,"Главный специалист",null,"Гондурас","Доллары США  ",60,null,null,null,null,null,null,null,null,null,"4.3.4. Развитие партнерских программ исходящей студенческой мобильности",null,null,null,null,"Гондурас","Доллары США  ",75]
[null,null,null,"Главный эксперт",null,"Гренада","Доллары США  ",70,null,null,null,null,null,null,null,null,null,"5.1.1. Расширение практики привлечения специалистов с открытого международного и российского рынка труда на позиции научно-педагогических работников",null,null,null,null,"Гренада","Доллары США  ",92]
[null,null,null,"Главный энергетик",null,"Греция","Доллары США  ",120,null,null,null,null,null,null,null,null,null,"5.1.2. Реализация программ стимулирования научно-педагогических работников для повышения их научной продуктивности",null,null,null,null,"Греция","Доллары США  ",58]
[null,null,null,"Горничная",null,"Грузия (Тбилиси)","Доллары США  ",95,null,null,null,null,null,null,null,null,null,"5.1.3. Адаптация программ профессионального развития научно-педагогических работников для решения стратегических задач Университета",null,null,null,null,"Грузия (Тбилиси)","Доллары США  ",54]
[null,null,null,"Дворник",null,"Грузия","Доллары США  ",80,null,null,null,null,null,null,null,null,null,"5.1.4. Программа \"Кадровый резерв\"",null,null,null,null,"Грузия","Доллары США  ",54]
[null,null,null,"Дежурный администратор",null,"Дания","Датские кроны",1300,null,null,null,null,null,null,null,null,null,"5.1.5. Реализация программы HSE Teaching Exellence Initiative",null,null,null,null,"Дания","Доллары США  ",70]
[null,null,null,"Дежурный бюро пропусков",null,"Джибути","Доллары США  ",100,null,null,null,null,null,null,null,null,null,"5.2.1. Развитие программ адаптации специалистов, привлеченных с международного рынка труда",null,null,null,null,"Джибути","Доллары США  ",75]
[null,null,null,"Дежурный по общежитию",null,"Содружество Доминики","Доллары США  ",80,null,null,null,null,null,null,null,null,null,"5.2.2. Совершенствование программ социальной поддержки и сервисов для иностранных граждан - работников Университета",null,null,null,null,"Содружество Доминики","Доллары США  ",69]
[null,null,null,"Декан",null,"Доминиканская республика","Доллары США  ",130,null,null,null,null,null,null,null,null,null,"5.3.1. Привлечение специалистов международного уровня на руководящие административные и академические позиции и развитие механизмов эффективной мотивации руководителей",null,null,null,null,"Доминиканская республика","Доллары США  ",59]
[null,null,null,"Делопроизводитель",null,"Египет","Доллары США  ",120,null,null,null,null,null,null,null,null,null,"5.3.2. Совершенствование системы оценки работников административных подразделений",null,null,null,null,"Египет","Доллары США  ",60]
[null,null,null,"Дизайнер",null,"Замбия","Доллары США  ",155,null,null,null,null,null,null,null,null,null,"5.3.3. Программы профессионального развития для административно-управленческого персонала и учебно-вспомогательного персонала",null,null,null,null,"Замбия","Доллары США  ",68]
[null,null,null,"Директор",null,"Заморские территории Франции","Евро         ",130,null,null,null,null,null,null,null,null,null,"5.3.4. Программа \"Административный кадровый резерв\"",null,null,null,null,"Заморские территории Франции","Доллары США  ",65]
[null,null,null,"Директор - руководитель аппарата",null,"Зимбабве","Доллары США  ",130,null,null,null,null,null,null,null,null,null,"6.1.1. Разработка и внедрение экономической модели структурных подразделений Университета в зависимости от видов деятельности",null,null,null,null,"Зимбабве","Доллары США  ",57]
[null,null,null,"Директор по безопасности",null,"Израиль","Доллары США  ",100,null,null,null,null,null,null,null,null,null,"6.2.1. Оснащение зданий кампуса ВШЭ оборудованием для людей с ограниченными физическими возможностями (пандусы и т.д.)",null,null,null,null,"Израиль","Доллары США  ",70]
[null,null,null,null,null,"Индия","Доллары США  ",100,null,null,null,null,null,null,null,null,null,"6.2.2. Создание гибридных пространств, оборудованных специальной мебелью для возможности трансформации пространства",null,null,null,null,"Индия","Доллары США  ",62]
[null,null,null,null,null,"Индонезия","Доллары США  ",110,null,null,null,null,null,null,null,null,null,"6.2.3. Создание и оборудование спортивных залов в зданиях кампуса ВШЭ",null,null,null,null,"Индонезия","Доллары США  ",69]
[null,null,null,"Директор по дополнительному профессиональному образованию",null,"Иордания","Доллары США  ",60,null,null,null,null,null,null,null,null,null,"7.1.1. Развитие баз данных Единого архива экономических и социологических данных",null,null,null,null,"Иордания","Доллары США  ",62]
[null,null,null,"Директор по информационным технологиям",null,"Ирак","Доллары США  ",100,null,null,null,null,null,null,null,null,null,"7.1.2. Информационная поддержка исследовательской деятельности научно-педагогических работников и обучающихся",null,null,null,null,"Ирак","Доллары США  ",81]
[null,null,null,"Директор по корпоративным закупкам и торгам",null,"Иран","Доллары США  ",110,null,null,null,null,null,null,null,null,null,"7.1.3. Система электронного поиска проектов и грантов",null,null,null,null,"Иран","Доллары США  ",62]
[null,null,null,null,null,"Ирландия","Евро         ",150,null,null,null,null,null,null,null,null,null,"7.1.4. Регулярная информационно-аналитическая поддержка руководителей факультетов с целью регулярного мониторинга публикационной активности факультетов",null,null,null,null,"Ирландия","Доллары США  ",65]
[null,null,null,"Директор по научным исследованиям и разработкам",null,"Исландия","Доллары США  ",160,null,null,null,null,null,null,null,null,null,"7.2.1. Подготовка студентов к работе в условиях цифровой экономики",null,null,null,null,"Исландия","Доллары США  ",70]
[null,null,null,"Директор по образовательным инновациям"]
[null,null,null,"Директор по персоналу",null,"Испания","Евро         ",140,null,null,null,null,null,null,null,null,null,"7.2.2. Запуск целевых программ повышения квалификации научно-педагогических работников в области Digital Culture",null,null,null,null,"Испания","Доллары США  ",62]
[null,null,null,"Директор по порталу",null,"Италия","Евро         ",150,null,null,null,null,null,null,null,null,null,"7.3.1. Онлайн-инструменты поддержки образовательного процесса для обеспечения гибкости образовательной программы",null,null,null,null,"Италия","Доллары США  ",65]
[null,null,null,"Директор по правовой работе",null,"Йемен","Доллары США  ",100,null,null,null,null,null,null,null,null,null,"7.3.2. Развитие электронного обучения и новые образовательные онлайн-форматы",null,null,null,null,"Йемен","Доллары США  ",66]
[null,null,null,"Директор по привлечению иностранных студентов",null,"Кабо-Верде","Доллары США  ",70,null,null,null,null,null,null,null,null,null,"7.3.3. Онлайн-поддержка приемной компании иностранных абитуриентов",null,null,null,null,"Кабо-Верде","Доллары США  ",64]
[null,null,null,"Директор по работе со студентами и выпускниками",null,"Казахстан (Алма-Ата и Астана)","Доллары США  ",100,null,null,null,null,null,null,null,null,null,"7.3.4. Онлайн-ресурсы проведения отдельных этапов олимпиад",null,null,null,null,"Казахстан  (Алма-Ата и Астана)","Доллары США  ",55]
[null,null,null,"Директор по связям с общественностью",null,"Казахстан","Доллары США  ",70,null,null,null,null,null,null,null,null,null,"7.4.1. Запуск системы электронных регламентов оптимизации административных сервисов и процессов ВШЭ",null,null,null,null,"Казахстан","Доллары США  ",55]
[null,null,null,null,null,"Каймановы Острова","Доллары США  ",130,null,null,null,null,null,null,null,null,null,"7.4.2. Обеспечение соответствия функциональности корпоративных информационных систем стратегическим целям Университета",null,null,null,null,"Каймановы Острова","Доллары США  ",69]
[null,null,null,"Директор по управлению общежитиями, гостиницами, учебно-оздоровительными комплексами",null,"Камбоджа","Доллары США  ",120,null,null,null,null,null,null,null,null,null,"7.4.3. Развитие проектной модели управления задачами IT",null,null,null,null,"Камбоджа","Доллары США  ",68]
[null,null,null,"Директор по фундаментальным исследованиям",null,"Камерун","Доллары США  ",100,null,null,null,null,null,null,null,null,null,"7.4.4. Совершенствование администрирования сервисов работы с персоналом (подбор персонала, кадровое делопроизводство, администрирование договоров ГПХ и т.п.)",null,null,null,null,"Камерун","Доллары США  ",69]
[null,null,null,"Директор по эксплуатации и текущему ремонту зданий и сооружений",null,"Канада","Доллары США  ",130,null,null,null,null,null,null,null,null,null,"8.1.1. Развитие системы просветительских мероприятий Университета на открытых площадках г. Москвы",null,null,null,null,"Канада","Доллары США  ",62]
[null,null,null,"Директор программы развития",null,"Катар","Доллары США  ",120,null,null,null,null,null,null,null,null,null,"8.1.2. Развитие социальной активности москвичей",null,null,null,null,"Катар","Доллары США  ",58]
[null,null,null,"Директор центра",null,"Кения","Доллары США  ",120,null,null,null,null,null,null,null,null,null,"8.1.3. Привлечение интереса широкой общественности к научным достижениям ВШЭ",null,null,null,null,"Кения","Доллары США  ",66]
[null,null,null,"Диспетчер",null,"Кипр","Доллары США  ",140,null,null,null,null,null,null,null,null,null,"8.1.4. Развитие культурно-исторического облика Москвы на территории площадок присутствия ВШЭ",null,null,null,null,"Кипр","Доллары США  ",59]
[null,null,null,"Доцент",null,"Киргизия (Бишкек)","Доллары США  ",100,null,null,null,null,null,null,null,null,null,"8.1.5. Юридическая и психологическая помощь студентов-волонтеров малозащищенным и малообеспеченным слоям населения",null,null,null,null,"Киргизия (Бишкек)","Доллары США  ",56]
[null,null,null,"Заведующий бюро",null,"Киргизия","Доллары США  ",70,null,null,null,null,null,null,null,null,null,"8.2.1. Развитие партнерств с ведущими вузами России, направленное на улучшение качества высшего образования",null,null,null,null,"Киргизия","Доллары США  ",56]
[null,null,null,"Заведующий бюро пропусков",null,"Республика Кирибати","Доллары США  ",130,null,null,null,null,null,null,null,null,null,"8.2.2. Открытая площадка профессионального развития специалистов в области образования",null,null,null,null,"Республика Кирибати","Доллары США  ",75]
[null,null,null,"Заведующий кабинетом",null,"Китай","Доллары США  ",120,null,null,null,null,null,null,null,null,null,"9.1.1. Содержание кампуса",null,null,null,null,"Китай","Доллары США  ",67]
[null,null,null,"Заведующий канцелярией",null,"Китай (Гонконг)","Доллары США  ",120,null,null,null,null,null,null,null,null,null,null,null,null,null,null,"Китай (Гонконг)","Доллары США  ",67]
[null,null,null,"Заведующий кафе",null,"Китай (Тайвань)","Доллары США  ",120,null,null,null,null,null,null,null,null,null,null,null,null,null,null,"Китай (Тайвань)","Доллары США  ",67]
[null,null,null,"Заведующий лабораторией",null,"Колумбия","Доллары США  ",90,null,null,null,null,null,null,null,null,null,null,null,null,null,null,"Колумбия","Доллары США  ",65]
[null,null,null,"Заведующий общежитием",null,"Коморские Острова","Доллары США  ",150,null,null,null,null,null,null,null,null,null,null,null,null,null,null,"Коморские Острова","Доллары США  ",86]
[null,null,null,"Заведующий отделом",null,"Конго","Доллары США  ",120,null,null,null,null,null,null,null,null,null,null,null,null,null,null,"Конго","Доллары США  ",85]
[null,null,null,"Заведующий производством",null,"Демократическая Республика Конго","Доллары США  ",100,null,null,null,null,null,null,null,null,null,null,null,null,null,null,"Демократическая Республика Конго","Доллары США  ",76]
[null,null,null,"Заведующий редакцией",null,"Корейская Народно-Демократическая Республика","Доллары США  ",170,null,null,null,null,null,null,null,null,null,null,null,null,null,null,"Корейская Народно-Демократическая Республика","Доллары США  ",65]
[null,null,null,"Заведующий секретариатом",null,"Республика Корея","Доллары США  ",180,null,null,null,null,null,null,null,null,null,null,null,null,null,null,"Республика Корея","Доллары США  ",66]
[null,null,null,"Заведующий сектором",null,"Коста-Рика","Доллары США  ",90,null,null,null,null,null,null,null,null,null,null,null,null,null,null,"Коста-Рика","Доллары США  ",63]
[null,null,null,"Заведующий складом",null,"Кот-д'Ивуар","Доллары США  ",110,null,null,null,null,null,null,null,null,null,null,null,null,null,null,"Кот-д'Ивуар","Доллары США  ",74]
[null,null,null,"Заведующий учебно-методическим кабинетом",null,"Куба","Доллары США  ",100,null,null,null,null,null,null,null,null,null,null,null,null,null,null,"Куба","Доллары США  ",65]
[null,null,null,"Заведующий хозяйством",null,"Кувейт","Доллары США  ",120,null,null,null,null,null,null,null,null,null,null,null,null,null,null,"Кувейт","Доллары США  ",59]
[null,null,null,"Заведующий центром",null,"Лаос","Доллары США  ",100,null,null,null,null,null,null,null,null,null,null,null,null,null,null,"Лаос","Доллары США  ",64]
[null,null,null,"Заместитель главного бухгалтера",null,"Латвия (Рига)","Доллары США  ",120,null,null,null,null,null,null,null,null,null,null,null,null,null,null,"Латвия (Рига)","Доллары США  ",55]
[null,null,null,"Заместитель главного редактора",null,"Латвия","Доллары США  ",65,null,null,null,null,null,null,null,null,null,null,null,null,null,null,"Латвия","Доллары США  ",55]
[null,null,null,"Заместитель декана",null,"Лесото","Доллары США  ",100,null,null,null,null,null,null,null,null,null,null,null,null,null,null,"Лесото","Доллары США  ",61]
[null,null,null,"Заместитель директора",null,"Либерия","Доллары США  ",115,null,null,null,null,null,null,null,null,null,null,null,null,null,null,"Либерия","Доллары США  ",78]
[null,null,null,"Заместитель директора по взаимодействию с органами власти\r\n\r\n\r\n",null,"Ливан","Доллары США  ",60,null,null,null,null,null,null,null,null,null,null,null,null,null,null,"Ливан","Доллары США  ",73]
[null,null,null,"Заместитель директора по дополнительному профессиональному образованию",null,"Ливия","Доллары США  ",100,null,null,null,null,null,null,null,null,null,null,null,null,null,null,"Ливия","Доллары США  ",70]
[null,null,null,"Заместитель директора по финансовой работе",null,"Литва (Вильнюс)","Доллары США  ",130,null,null,null,null,null,null,null,null,null,null,null,null,null,null,"Литва (Вильнюс)","Доллары США  ",57]
[null,null,null,"Заместитель директора центра",null,"Литва","Доллары США  ",115,null,null,null,null,null,null,null,null,null,null,null,null,null,null,"Литва","Доллары США  ",57]
[null,null,null,"Заместитель заведующего лабораторией",null,"Лихтенштейн","Доллары США  ",150,null,null,null,null,null,null,null,null,null,null,null,null,null,null,"Лихтенштейн","Доллары США  ",71]
[null,null,null,"Заместитель заведующего общежитием",null,"Люксембург","Евро         ",90,null,null,null,null,null,null,null,null,null,null,null,null,null,null,"Люксембург","Доллары США  ",61]
[null,null,null,"Заместитель заведующего отделом",null,"Маврикий","Доллары США  ",100,null,null,null,null,null,null,null,null,null,null,null,null,null,null,"Маврикий","Доллары США  ",63]
[null,null,null,"Заместитель заведующего производством",null,"Мавритания","Доллары США  ",120,null,null,null,null,null,null,null,null,null,null,null,null,null,null,"Мавритания","Доллары США  ",67]
[null,null,null,"Заместитель заведующего сектором",null,"Мадагаскар","Доллары США  ",120,null,null,null,null,null,null,null,null,null,null,null,null,null,null,"Мадагаскар","Доллары США  ",64]
[null,null,null,"Заместитель заведующего складом",null,"Макао","Доллары США  ",100,null,null,null,null,null,null,null,null,null,null,null,null,null,null,"Макао","Доллары США  ",67]
[null,null,null,"Заместитель заведующего учебно-методическим кабинетом",null,"Македония","Доллары США  ",150,null,null,null,null,null,null,null,null,null,null,null,null,null,null,"Македония","Доллары США  ",60]
[null,null,null,"Заместитель заведующего центром",null,"Малави","Доллары США  ",90,null,null,null,null,null,null,null,null,null,null,null,null,null,null,"Малави","Доллары США  ",66]
[null,null,null,"Заместитель научного руководителя",null,"Малайзия","Доллары США  ",120,null,null,null,null,null,null,null,null,null,null,null,null,null,null,"Малайзия","Доллары США  ",60]
[null,null,null,"Заместитель начальника отдела",null,"Мали","Доллары США  ",140,null,null,null,null,null,null,null,null,null,null,null,null,null,null,"Мали","Доллары США  ",70]
[null,null,null,"Заместитель начальника управления",null,"Мальдивы","Доллары США  ",100,null,null,null,null,null,null,null,null,null,null,null,null,null,null,"Мальдивы","Доллары США  ",67]
[null,null,null,"Заместитель начальника учебной части",null,"Мальта","Доллары США  ",100,null,null,null,null,null,null,null,null,null,null,null,null,null,null,"Мальта","Доллары США  ",61]
[null,null,null,"Заместитель начальника учебной части - старший преподаватель",null,"Марокко","Доллары США  ",120,null,null,null,null,null,null,null,null,null,null,null,null,null,null,"Марокко","Доллары США  ",58]
[null,null,null,"Заместитель первого проректора",null,"Мексика","Доллары США  ",100,null,null,null,null,null,null,null,null,null,null,null,null,null,null,"Мексика","Доллары США  ",64]
[null,null,null,"Заместитель проректора",null,"Мозамбик","Доллары США  ",100,null,null,null,null,null,null,null,null,null,null,null,null,null,null,"Мозамбик","Доллары США  ",68]
[null,null,null,"Заместитель руководителя департамента",null,"Молдавия (Кишинев)","Доллары США  ",90,null,null,null,null,null,null,null,null,null,null,null,null,null,null,"Молдавия (Кишинев)","Доллары США  ",53]
[null,null,null,"Заместитель руководителя центра",null,"Молдавия","Доллары США  ",50,null,null,null,null,null,null,null,null,null,null,null,null,null,null,"Молдавия","Доллары США  ",53]
[null,null,null,"Заместитель руководителя школы",null,"Монако","Доллары США  ",150,null,null,null,null,null,null,null,null,null,null,null,null,null,null,"Монако","Доллары США  ",65]
[null,null,null,"Звукорежиссер",null,"Монголия","Доллары США  ",90,null,null,null,null,null,null,null,null,null,null,null,null,null,null,"Монголия","Доллары США  ",59]
[null,null,null,"и.о. начальника службы",null,"Мьянма","Доллары США  ",80,null,null,null,null,null,null,null,null,null,null,null,null,null,null,"Мьянма","Доллары США  ",65]
[null,null,null,"Инженер",null,"Намибия","Доллары США  ",140,null,null,null,null,null,null,null,null,null,null,null,null,null,null,"Намибия","Доллары США  ",61]
[null,null,null,"Инженер 1 категории",null,"Науру","Доллары США  ",130,null,null,null,null,null,null,null,null,null,null,null,null,null,null,"Науру","Доллары США  ",60]
[null,null,null,"Инженер 2 категории",null,"Непал","Доллары США  ",85,null,null,null,null,null,null,null,null,null,null,null,null,null,null,"Непал","Доллары США  ",65]
[null,null,null,"Инженер по качеству",null,"Нигер","Доллары США  ",150,null,null,null,null,null,null,null,null,null,null,null,null,null,null,"Нигер","Доллары США  ",78]
[null,null,null,"Инженер по охране труда",null,"Нигерия","Доллары США  ",150,null,null,null,null,null,null,null,null,null,null,null,null,null,null,"Нигерия","Доллары США  ",72]
[null,null,null,"Инженер-исследователь",null,"Нидерланды","Евро         ",200,null,null,null,null,null,null,null,null,null,null,null,null,null,null,"Нидерланды","Доллары США  ",65]
[null,null,null,"Инженер-программист",null,"Никарагуа","Доллары США  ",90,null,null,null,null,null,null,null,null,null,null,null,null,null,null,"Никарагуа","Доллары США  ",68]
[null,null,null,"Инженер-программист 2 категории",null,"Новая Зеландия","Доллары США  ",130,null,null,null,null,null,null,null,null,null,null,null,null,null,null,"Новая Зеландия","Доллары США  ",65]
[null,null,null,"Инженер-технолог",null,"Новая Каледония","Доллары США  ",100,null,null,null,null,null,null,null,null,null,null,null,null,null,null,"Новая Каледония","Доллары США  ",60]
[null,null,null,"Инспектор по кадрам",null,"Норвегия","Норвежские кроны  ",1055,null,null,null,null,null,null,null,null,null,null,null,null,null,null,"Норвегия","Доллары США  ",79]
[null,null,null,"Инспектор по кадрам 1 категории",null,"Объединенные Арабские Эмират","Доллары США  ",155,null,null,null,null,null,null,null,null,null,null,null,null,null,null,"Объединенные Арабские Эмират","Доллары США  ",60]
[null,null,null,"Инспектор по кадрам 2 категории",null,"Оман","Доллары США  ",110,null,null,null,null,null,null,null,null,null,null,null,null,null,null,"Оман","Доллары США  ",62]
[null,null,null,"Инспектор по контролю за исполнением поручений",null,"Пакистан","Доллары США  ",120,null,null,null,null,null,null,null,null,null,null,null,null,null,null,"Пакистан","Доллары США  ",69]
[null,null,null,"Инструктор по противопожарной профилактике",null,"Палау, остров","Доллары США  ",150,null,null,null,null,null,null,null,null,null,null,null,null,null,null,"Палау, остров","Доллары США  ",63]
[null,null,null,"Калькулятор",null,"Палестина","Доллары США  ",100,null,null,null,null,null,null,null,null,null,null,null,null,null,null,"Палестина","Доллары США  ",70]
[null,null,null,"Кастелянша",null,"Панама","Доллары США  ",100,null,null,null,null,null,null,null,null,null,null,null,null,null,null,"Панама","Доллары США  ",64]
[null,null,null,"Кладовщик",null,"Папуа-Новая Гвинея","Доллары США  ",120,null,null,null,null,null,null,null,null,null,null,null,null,null,null,"Папуа-Новая Гвинея","Доллары США  ",68]
[null,null,null,"Комендант",null,"Парагвай","Доллары США  ",70,null,null,null,null,null,null,null,null,null,null,null,null,null,null,"Парагвай","Доллары США  ",57]
[null,null,null,"Контролер-кассир",null,"Перу","Доллары США  ",110,null,null,null,null,null,null,null,null,null,null,null,null,null,null,"Перу","Доллары США  ",63]
[null,null,null,"Корректор",null,"Польша","Доллары США  ",95,null,null,null,null,null,null,null,null,null,null,null,null,null,null,"Польша","Доллары США  ",56]
[null,null,null,"Корреспондент",null,"Португалия","Доллары США  ",95,null,null,null,null,null,null,null,null,null,null,null,null,null,null,"Португалия","Доллары США  ",61]
[null,null,null,"Кухонный рабочий",null,"Пуэрто-Рико","Доллары США  ",170,null,null,null,null,null,null,null,null,null,null,null,null,null,null,"Пуэрто-Рико","Доллары США  ",72]
[null,null,null,"Лаборант",null,"Руанда","Доллары США  ",120,null,null,null,null,null,null,null,null,null,null,null,null,null,null,"Руанда","Доллары США  ",72]
[null,null,null,"Маляр",null,"Румыния","Доллары США  ",130,null,null,null,null,null,null,null,null,null,null,null,null,null,null,"Румыния","Доллары США  ",56]
[null,null,null,"Мастер",null,"Сальвадор","Доллары США  ",90,null,null,null,null,null,null,null,null,null,null,null,null,null,null,"Сальвадор","Доллары США  ",68]
[null,null,null,"Мастер производственного обучения вождению боевых машин",null,"Самоа","Доллары США  ",90,null,null,null,null,null,null,null,null,null,null,null,null,null,null,"Самоа","Доллары США  ",64]
[null,null,null,"Математик",null,"Сан-Марино","Евро         ",150,null,null,null,null,null,null,null,null,null,null,null,null,null,null,"Сан-Марино","Доллары США  ",65]
[null,null,null,"Математик 2 категории",null,"Сан-Томе и Принсипи","Доллары США  ",100,null,null,null,null,null,null,null,null,null,null,null,null,null,null,"Сан-Томе и Принсипи","Доллары США  ",74]
[null,null,null,"Менеджер",null,"Саудовская Аравия","Доллары США  ",100,null,null,null,null,null,null,null,null,null,null,null,null,null,null,"Саудовская Аравия","Доллары США  ",64]
[null,null,null,"Менеджер по рекламе",null,"Свазиленд","Доллары США  ",110,null,null,null,null,null,null,null,null,null,null,null,null,null,null,"Свазиленд","Доллары США  ",65]
[null,null,null,"Методист",null,"Сейшельские Острова","Доллары США  ",170,null,null,null,null,null,null,null,null,null,null,null,null,null,null,"Сейшельские Острова","Доллары США  ",71]
[null,null,null,"Механик",null,"Сенегал","Доллары США  ",130,null,null,null,null,null,null,null,null,null,null,null,null,null,null,"Сенегал","Доллары США  ",70]
[null,null,null,"Младший научный сотрудник",null,"Сент-Люсия","Доллары США  ",100,null,null,null,null,null,null,null,null,null,null,null,null,null,null,"Сент-Люсия","Доллары США  ",69]
[null,null,null,"Мойщик",null,"Сербия и Черногория","Доллары США  ",95,null,null,null,null,null,null,null,null,null,null,null,null,null,null,"Сербия и Черногория","Доллары США  ",60]
[null,null,null,"Мойщик посуды",null,"Сингапур","Доллары США  ",170,null,null,null,null,null,null,null,null,null,null,null,null,null,null,"Сингапур","Доллары США  ",61]
[null,null,null,"Монтажер",null,"Сирия","Доллары США  ",100,null,null,null,null,null,null,null,null,null,null,null,null,null,null,"Сирия","Доллары США  ",62]
[null,null,null,"Научный редактор",null,"Словакия","Доллары США  ",100,null,null,null,null,null,null,null,null,null,null,null,null,null,null,"Словакия","Доллары США  ",59]
[null,null,null,"Научный руководитель",null,"Словения","Доллары США  ",130,null,null,null,null,null,null,null,null,null,null,null,null,null,null,"Словения","Доллары США  ",57]
[null,null,null,"Научный руководитель направления",null,"Соломоновы Острова","Доллары США  ",120,null,null,null,null,null,null,null,null,null,null,null,null,null,null,"Соломоновы Острова","Доллары США  ",56]
[null,null,null,"Научный сотрудник",null,"Сомали","Доллары США  ",100,null,null,null,null,null,null,null,null,null,null,null,null,null,null,"Сомали","Доллары США  ",70]
[null,null,null,"Начальник военной кафедры",null,"Судан","Доллары США  ",160,null,null,null,null,null,null,null,null,null,null,null,null,null,null,"Судан","Доллары США  ",78]
[null,null,null,"Начальник лагеря",null,"Суринам","Доллары США  ",130,null,null,null,null,null,null,null,null,null,null,null,null,null,null,"Суринам","Доллары США  ",69]
[null,null,null,"Начальник отдела",null,"США (Нью-Йорк)","Доллары США  ",350,null,null,null,null,null,null,null,null,null,null,null,null,null,null,"США (Нью-Йорк)","Доллары США  ",72]
[null,null,null,"Начальник отделения учебной и тренировочной аппаратуры",null,"США","Доллары США  ",260,null,null,null,null,null,null,null,null,null,null,null,null,null,null,"США","Доллары США  ",72]
[null,null,null,"Начальник управления",null,"Сьерра-Леоне","Доллары США  ",150,null,null,null,null,null,null,null,null,null,null,null,null,null,null,"Сьерра-Леоне","Доллары США  ",69]
[null,null,null,"Начальник участка",null,"Таджикистан (Душанбе)","Доллары США  ",100,null,null,null,null,null,null,null,null,null,null,null,null,null,null,"Таджикистан (Душанбе)","Доллары США  ",60]
[null,null,null,"Начальник учебной части",null,"Таджикистан","Доллары США  ",80,null,null,null,null,null,null,null,null,null,null,null,null,null,null,"Таджикистан","Доллары США  ",60]
[null,null,null,"Начальник учебной части - Заместитель начальника военной кафедры",null,"Таиланд","Доллары США  ",140,null,null,null,null,null,null,null,null,null,null,null,null,null,null,"Таиланд","Доллары США  ",58]
[null,null,null,"Начальник цикла военной кафедры - старший преподаватель",null,"Танзания","Доллары США  ",110,null,null,null,null,null,null,null,null,null,null,null,null,null,null,"Танзания","Доллары США  ",66]
[null,null,null,"Облицовщик-плиточник",null,"Того","Доллары США  ",90,null,null,null,null,null,null,null,null,null,null,null,null,null,null,"Того","Доллары США  ",65]
[null,null,null,"Обозреватель",null,"Тонга","Доллары США  ",115,null,null,null,null,null,null,null,null,null,null,null,null,null,null,"Тонга","Доллары США  ",54]
[null,null,null,"Оператор диспетчерской службы",null,"Тринидад и Тобаго","Доллары США  ",110,null,null,null,null,null,null,null,null,null,null,null,null,null,null,"Тринидад и Тобаго","Доллары США  ",68]
[null,null,null,"Оператор копировальных и множительных машин",null,"Тунис","Доллары США  ",95,null,null,null,null,null,null,null,null,null,null,null,null,null,null,"Тунис","Доллары США  ",60]
[null,null,null,"Оператор электронно-вычислительных и вычислительных машин",null,"Туркменистан (Ашхабад)","Доллары США  ",50,null,null,null,null,null,null,null,null,null,null,null,null,null,null,"Туркменистан (Ашхабад)","Доллары США  ",65]
[null,null,null,"Ответственный секретарь",null,"Туркменистан","Доллары США  ",35,null,null,null,null,null,null,null,null,null,null,null,null,null,null,"Туркменистан","Доллары США  ",65]
[null,null,null,"Официант",null,"Турция","Доллары США  ",120,null,null,null,null,null,null,null,null,null,null,null,null,null,null,"Турция","Доллары США  ",64]
[null,null,null,"Паркетчик",null,"Уганда","Доллары США  ",100,null,null,null,null,null,null,null,null,null,null,null,null,null,null,"Уганда","Доллары США  ",65]
[null,null,null,"Паспортист",null,"Узбекистан (Ташкент)","Доллары США  ",100,null,null,null,null,null,null,null,null,null,null,null,null,null,null,"Узбекистан (Ташкент)","Доллары США  ",59]
[null,null,null,"Пекарь",null,"Узбекистан","Доллары США  ",40,null,null,null,null,null,null,null,null,null,null,null,null,null,null,"Узбекистан","Доллары США  ",59]
[null,null,null,"Первый заместитель декана",null,"Украина (Киев)","Доллары США  ",150,null,null,null,null,null,null,null,null,null,null,null,null,null,null,"Украина (Киев)","Доллары США  ",53]
[null,null,null,"Первый проректор",null,"Украина","Доллары США  ",100,null,null,null,null,null,null,null,null,null,null,null,null,null,null,"Украина","Доллары США  ",53]
[null,null,null,"Переплетчик",null,"Уругвай","Доллары США  ",70,null,null,null,null,null,null,null,null,null,null,null,null,null,null,"Уругвай","Доллары США  ",60]
[null,null,null,"Печатник плоской печати",null,"Фиджи","Доллары США  ",70,null,null,null,null,null,null,null,null,null,null,null,null,null,null,"Фиджи","Доллары США  ",61]
[null,null,null,"Плотник",null,"Филиппины","Доллары США  ",150,null,null,null,null,null,null,null,null,null,null,null,null,null,null,"Филиппины","Доллары США  ",63]
[null,null,null,"Повар",null,"Финляндия","Евро         ",180,null,null,null,null,null,null,null,null,null,null,null,null,null,null,"Финляндия","Доллары США  ",62]
[null,null,null,"Подсобный рабочий",null,"Франция","Евро         ",185,null,null,null,null,null,null,null,null,null,null,null,null,null,null,"Франция","Доллары США  ",65]
[null,null,null,"Помощник директора",null,"Хорватия","Доллары США  ",120,null,null,null,null,null,null,null,null,null,null,null,null,null,null,"Хорватия","Доллары США  ",63]
[null,null,null,"Помощник научного руководителя",null,"Центрально-Африканская Республика","Доллары США  ",100,null,null,null,null,null,null,null,null,null,null,null,null,null,null,"Центрально-Африканская Республика","Доллары США  ",90]
[null,null,null,"Помощник первого проректора",null,"Чад","Доллары США  ",170,null,null,null,null,null,null,null,null,null,null,null,null,null,null,"Чад","Доллары США  ",95]
[null,null,null,"Помощник проректора",null,"Чехия","Доллары США  ",140,null,null,null,null,null,null,null,null,null,null,null,null,null,null,"Чехия","Доллары США  ",60]
[null,null,null,"Помощник ректора",null,"Чили","Доллары США  ",90,null,null,null,null,null,null,null,null,null,null,null,null,null,null,"Чили","Доллары США  ",63]
[null,null,null,"Президент",null,"Швейцария","Швейцарские франки",270,null,null,null,null,null,null,null,null,null,null,null,null,null,null,"Швейцария","Доллары США  ",71]
[null,null,null,"Преподаватель",null,"Швеция","Шведские кроны",2000,null,null,null,null,null,null,null,null,null,null,null,null,null,null,"Швеция","Доллары США  ",65]
[null,null,null,"Программист",null,"Шри-Ланка","Доллары США  ",70,null,null,null,null,null,null,null,null,null,null,null,null,null,null,"Шри-Ланка","Доллары США  ",62]
[null,null,null,"Программист 1 категории",null,"Эквадор","Доллары США  ",75,null,null,null,null,null,null,null,null,null,null,null,null,null,null,"Эквадор","Доллары США  ",67]
[null,null,null,"Проректор",null,"Экваториальная Гвинея","Доллары США  ",110,null,null,null,null,null,null,null,null,null,null,null,null,null,null,"Экваториальная Гвинея","Доллары США  ",79]
[null,null,null,"Профессор",null,"Эритрея","Доллары США  ",70,null,null,null,null,null,null,null,null,null,null,null,null,null,null,"Эритрея","Доллары США  ",68]
[null,null,null,"Профессор-исследователь",null,"Эстония (Таллин)","Доллары США  ",120,null,null,null,null,null,null,null,null,null,null,null,null,null,null,"Эстония (Таллин)","Доллары США  ",55]
[null,null,null,"Психолог",null,"Эстония","Доллары США  ",60,null,null,null,null,null,null,null,null,null,null,null,null,null,null,"Эстония","Доллары США  ",55]
[null,null,null,"Рабочий высокой квалификации",null,"Эфиопия","Доллары США  ",100,null,null,null,null,null,null,null,null,null,null,null,null,null,null,"Эфиопия","Доллары США  ",70]
[null,null,null,"Рабочий по комплексному обслуживанию и ремонту зданий",null,"Южная Осетия","Доллары США  ",95,null,null,null,null,null,null,null,null,null,null,null,null,null,null,"Южная Осетия","Доллары США  ",54]
[null,null,null,"Редактор",null,"Южно-Африканская Республика","Доллары США  ",100,null,null,null,null,null,null,null,null,null,null,null,null,null,null,"Южно-Африканская Республика","Доллары США  ",58]
[null,null,null,"Редактор 1 категории",null,"Ямайка","Доллары США  ",130,null,null,null,null,null,null,null,null,null,null,null,null,null,null,"Ямайка","Доллары США  ",69]
[null,null,null,"Режиссер видеомонтажа",null,"Япония","Японские иены ",24000,null,null,null,null,null,null,null,null,null,null,null,null,null,null,"Япония","Доллары США  ",83]
[null,null,null,"Ректор"]
[null,null,null,"Референт"]
[null,null,null,"Руководитель группы"]
[null,null,null,"Руководитель департамента"]
[null,null,null,"Руководитель коллектива"]
[null,null,null,"Руководитель проекта"]
[null,null,null,"Руководитель секретариата"]
[null,null,null,"Руководитель центра"]
[null,null,null,"Руководитель школы"]
[null,null,null,"Секретарь"]
[null,null,null,"Секретарь учебной части"]
[null,null,null,"Слесарь-сантехник"]
[null,null,null,"Советник"]
[null,null,null,"Социальный педагог"]
[null,null,null,"Специалист"]
[null,null,null,"Специалист по кадрам"]
[null,null,null,"Специалист по кадрам 1 категории"]
[null,null,null,"Специалист по кадрам 2 категории"]
[null,null,null,"Специалист по связям с общественностью"]
[null,null,null,"Специалист по учебно-методической работе"]
[null,null,null,"Специалист по учебно-методической работе 1 категории"]
[null,null,null,"Специалист по учебно-методической работе 2 категории"]
[null,null,null,"Стажер-исследователь"]
[null,null,null,"Старший администратор"]
[null,null,null,"Старший администратор дежурный"]
[null,null,null,"Старший дежурный по общежитию"]
[null,null,null,"Старший директор по административной работе"]
[]
[null,null,null,"Старший директор по информационным технологиям"]
[null,null,null,"Старший директор по основным образовательным программам"]
[null,null,null,"Старший директор по связям с общественностью"]
[null,null,null,"Старший директор по финансовой работе"]
[null,null,null,"Старший диспетчер"]
[null,null,null,"Старший инженер"]
[null,null,null,"Старший инспектор по контролю за исполнением поручений"]
[null,null,null,"Старший лаборант"]
[null,null,null,"Старший методист"]
[null,null,null,"Старший научный сотрудник"]
[null,null,null,"Старший преподаватель"]
[null,null,null,"Статистик"]
[null,null,null,"Столяр"]
[null,null,null,"Техник"]
[null,null,null,"Техник 1 категории"]
[null,null,null,"Техник-программист"]
[null,null,null,"Технический редактор"]
[null,null,null,"Товаровед"]
[null,null,null,"Тракторист-машинист"]
[null,null,null,"Тьютор"]
[null,null,null,"Уборщик производственных и служебных помещений"]
[null,null,null,"Уборщик служебных помещений"]
[null,null,null,"Учебный мастер"]
[null,null,null,"Ученый секретарь"]
[null,null,null,"Фельдшер"]
[null,null,null,"Художественный редактор"]
[null,null,null,"Художник"]
[null,null,null,"Швея"]
[null,null,null,"Шеф-редактор"]
[null,null,null,"Штукатур"]
[null,null,null,"Экономист"]
[null,null,null,"Экспедитор"]
[null,null,null,"Эксперт"]
[null,null,null,"Электрогазосварщик"]
[null,null,null,"Электромонтер по ремонту и обслуживанию электрооборудования"]
[null,null,null,"Электроник 1 категории"]
[null,null,null,"Электроник 2 категории"]
[null,null,null,"Юрисконсульт"]
[null,null,null,"Юрисконсульт 1 категории"]

{"sheet":"Согласование ЦБ","index":4,"n_rows":25,"n_cols":6,"rows_kept":25,"cut":false,"hidden":true,"merged":[[0,0,0,5]]}
["Перечень направлений командировочных расходов, курируемых отделом централизованных ресурсов ПФУ"]
[]
["статьи расходов ИС-ПРО","статьи расходов ФАС","Строка ФП (статьи расходов ЦБ)","статьи расходов","Куратор подразделений","Куратор ПФУ"]
[1103060,22010200,"Проведение конференций и семинаров","Проведение конференций и семинаров","Радаев В.В./Григорьева Е.А.","Афанасьева А.Н."]
[1304000,27020000,"Резерв ректора","Резерв ректора","Кузьминов Я.И.","Афанасьева А.Н."]
[1900030,21010500,"Мероприятия программы \"Кадровый резерв\"","Стажировка и повышение квалификации сотрудников ВШЭ на базе ведущих зарубежных университетов","Юдкевич М.М./Гришина А.В.","Афанасьева А.Н."]
[1900401,22020810,"Многопрофильные олимпиады школьников","Многопрофильная олимпиада школьников","Башев В.В./Протасевич Т.А.","Афанасьева А.Н."]
[1900402,22020830,"Прочие олимпиады","Олимпиада для студентов и выпускников вузов России и стран СНГ","Башев В.В./Протасевич Т.А.","Афанасьева А.Н."]
[1900440,22020300,"Мероприятия Управления по сотрудничеству со странами СНГ и Балтии","Проведение в странах СНГ и Центральной и Восточной Европы конкурсного отбора на места, обеспеченные государственным финансированием (квотного отбора), олимпиад и пр.","Ерофеев С.А./Четвернина Т.Я.","Афанасьева А.Н."]
[1900441,22020600,"Партнерства ВШЭ с региональными центрами, образовательными учреждениями, вузами России","Профориентационная работа в регионах РФ (командировки в вузы, школы, региональные департаменты образования, участие  в проведении летних региональных школ для одаренных школьников   и др.)","Башев В.В./Протасевич Т.А.","Афанасьева А.Н."]
[2500000,21050200,"Мероприятия Бизнес-инкубатора","Мероприятия Бизнес-инкубатора, Управление инновационной деятельности","Новосельцев А.В. /Суворова Н.И.","Афанасьева А.Н."]
[1104000,25020201,"Командировки и служебные разъезды","Командировки и служебные разъезды","Новосельцев А.В. / командировки за счет средств центрального бюджета","Кирсенкова Н.А."]
[1111040,21012500,"ПОВЫШЕНИЕ КВАЛИФИКАЦИИ РАБОТНИКОВ УНИВЕРСИТЕТА","Формирование группы участников программы Кадрового административного резерва","Ерофеев С.А./Гринкевич Ю.В.","Кирсенкова Н.А."]
[1900180,21040400,"Организация международного рекрутинга и поддержка академической мобильности международных специалистов PhD и пост-доков","Программа исходящей академической мобильности международных специалистов PhD","Радаев В.В./Медведева М.В.","Кирсенкова Н.А."]
[1900290,21030400,"Развитие международных партнерств и продвижение участия НИУ ВШЭ в деятельности ассоциаций и сетей","Развитие институциональных партнерств с ведущими международными научно-образовательными центрами","Ерофеев С.А./Баталина М.Л.","Кирсенкова Н.А."]
[1900293,21030800,"Участие в международных образовательных ярмарках и выставках, международный образовательный маркетинг, партнерства с международными организациями","Участие в образовательных ярмарках и выставках в странах дальнего зарубежья","Ерофеев С.А./Мармет Н.","Кирсенкова Н.А."]
[2640000,21020200,"Грант Правительства РФ для господдержки научных исследований (лаборатория Ж.Ф.Тисса)","Лаборатория Ж.Ф. Тисса","Юдкевич М.М./Кичко С.И.","Кирсенкова Н.А."]
[2650000,21020300,"Грант Правительства РФ для господдержки научных исследований (лаборатория П.Парадалоса)","Лаборатория П. Парадалоса","Юдкевич М.М./Калягин В.А.","Кирсенкова Н.А."]
[2670000,21020400,"Грант Правительства РФ для господдержки научных исследований (лаборатория Ю.М. Кабанова)","Лаборатория Ю.М. Кабанова","Юдкевич М.М./Катышев П.К.","Кирсенкова Н.А."]
[1111040,21012500,"ПОВЫШЕНИЕ КВАЛИФИКАЦИИ РАБОТНИКОВ УНИВЕРСИТЕТА","Центр повышения квалификации","Радаев В.В./Рожков М.А.","Князюк Н.Д."]
[1500000,21012300,"ПРОГРАММА \"НАУЧНЫЙ ФОНД\"","Договора ГПХ, гранты","Юдкевич М.М./Чурикова О.А.","Князюк Н.Д."]
[1900210,22030100,"Финансирование издания книг, препринтов, монографий","финансирование книг и препринтов","Радаев В.В./Иванова Е.А.","Павлова М.А."]
[1900550,22030400,"Проект \"Повышение качества журналов НИУ ВШЭ\"","Проект \"Повышение качества журналов НИУ ВШЭ\"","Радаев В.В.","Павлова М.А."]
[1900460,22060400,"Мероприятия Дирекции программы развития","Проведение мероприятий в рамках сетевого взаимодействия вузов-участников Программы «5:100»","Карелина И.Г.","Полторацкая В.С."]
[1900540,23030000,"Поддержка международных научных партнерств","Поддержка и развитие международных научных партнерств НИУ ВШЭ с зарубежными исследовательскими организациями","Гохберг Л.М./Кабанова Е.В.","Полторацкая В.С."]

{"sheet":"Структура","index":5,"n_rows":314,"n_cols":3,"rows_kept":314,"cut":false,"hidden":true,"merged":[]}
["Наименование подразделения","Шифр подразделения","Укрупненный шифр"]
[]
["\r\n\r\nУправление общего образования","01.98","01.98"]
["\"Программа \"\"Научный фонд ГУ-ВШЭ\"\"\"","11.12"]
["\"Проект \"\"Социологические и маркетинговые исслед.\"\"\"","11.03"]
["\"Проекты \"\"Учитель-ученик\"\"\"","11.12.04"]
["1-ый отдел","01.31","01.31"]
["PR мероприятия","11.19"]
["Аналитический центр","01.72","01.72"]
["Антикоррупционный центр","05.66","05.66"]
["архитектурное бюро","05.63.04","05.63"]
["базовая кафедра \"Интеллектуальные технологии системного анализа и управления\" Федерального исследовательского центра \"Информатика и управление\" Российской академии наук (ФИЦ ИУ РАН)","02.26.10","02.26"]
["базовая кафедра \"Системное программирование\" Института системного программирования РАН","02.26.01.01","02.26"]
["базовая кафедра компании SAS","02.26.17","02.26"]
["базовая кафедра компании МакКинзи и Ко","02.12.05","02.12"]
["Базовая кафедра Музея современного искусства \"Гараж\"","02.32","02.32"]
["базовая кафедра Яндекс","02.26.03.01","02.26"]
["Банковский институт","07.03.03","07.03"]
["Библиотека","03.01","03.01"]
["Всероссийская олимпиада по экономике","11.22"]
["Второй отдел","01.39","01.39"]
["Высшая школа бизнес-информатики","07.03.20","07.03"]
["Высшая школа маркетинга и развития бизнеса","07.03.11","07.03"]
["Высшая школа менеджмента","07.03.04","07.03"]
["Высшая школа управления проектами","07.03.15","07.03"]
["Высшая школа урбанистики имени А.А. Высоковского","02.33.01","02.33"]
["Высшая школа юриспруденции","07.03.13","07.03"]
["Гранты на участие в науч. меропр.за рубеж. и(ли)РФ","11.12.02"]
["департамент анализа данных и искусственного интеллекта","02.26.02","02.26"]
["департамент больших данных и информационного поиска","02.26.03","02.26"]
["Департамент иностранных языков","02.24","02.24"]
["департамент интегрированных коммуникаций","02.25.02","02.25"]
["департамент медиа","02.25.01","02.25"]
["департамент образовательных программ","05.15.15","05.15"]
["департамент образовательных программ","05.64.02","05.64"]
["департамент программной инженерии","02.26.01","02.26"]
["Дирекция административно-учебного комплекса \"Покровский бульвар\"","04.17","04.17"]
["Дирекция информационных технологий","03.11","03.11"]
["Дирекция научных исследований и разработок","01.56","01.56"]
["Дирекция основных образовательных программ","01.88","01.88"]
["Дирекция по безопасности","01.62","01.62"]
["Дирекция по внутренним исследованиям и академическому развитию студентов","01.92","01.92"]
["Дирекция по земельным отношениям и управлению недвижимым имуществом","01.40","01.40"]
["Дирекция по интернационализации","01.91","01.91"]
["Дирекция по капитальному строительству и ремонту","01.53","01.53"]
["Дирекция по корпоративным закупкам и торгам","01.85","01.85"]
["Дирекция по научным проектам","01.87","01.87"]
["Дирекция по онлайн обучению","01.82","01.82"]
["Дирекция по привлечению иностранных студентов","01.93","01.93"]
["Дирекция по профессиональной ориентации и работе с одаренными учащимися","01.65","01.65"]
["Дирекция по развитию студенческого потенциала","01.83","01.83"]
["Дирекция по связям с общественностью","01.96","01.96"]
["Дирекция по управлению общежитиями, гостиницами, учебно-оздоровительными комплексами","04.15","04.15"]
["Дирекция по экспертно-аналитической работе","01.71","01.71"]
["Дирекция по эксплуатации и текущему ремонту зданий и сооружений\r\n","04.11","04.11"]
["Дирекция программы развития","01.16","01.16"]
["Дирекция программы развития","11.30"]
["Единый архив экономических и социологических данных","05.38","05.38"]
["Ежегодная международная конференция","11.06"]
["Издание журналов ГУ-ВШЭ, монографий и книг ППС","11.07"]
["Издательский дом ","03.07","03.07"]
["Индивидуальные исследовательские гранты ГУ-ВШЭ","11.12.01"]
["Институт «Центр развития»","05.35","05.35"]
["Институт аграрных исследований","05.95","05.95"]
["Институт анализа предприятий и рынков","05.01","05.01"]
["Институт государственного и муниципального управления","05.19","05.19"]
["Институт гуманитарных историко-теоретических исследований им. А.В. Полетаева","05.16","05.16"]
["Институт демографии","05.04","05.04"]
["Институт занятости и профессий","05.77","05.77"]
["Институт институциональных исследований","05.80","05.80"]
["Институт когнитивных нейронаук","05.97","05.97"]
["Институт количественных финансов","05.88","05.88"]
["Институт коммуникационного менеджмента","07.03.08","07.03"]
["Институт конкурентной политики и регулирования рынков","05.85","05.85"]
["Институт менеджмента инноваций","05.42","05.42"]
["Институт налогового менеджмента и экономики недвижимости","07.03.12","07.03"]
["Институт образования","05.64","05.64"]
["Институт по ресурсному обеспечению управления закупками и продажами для государственных и муниципальных нужд им. А.Б. Соловьева","07.02.03","07.02"]
["Институт подготовки специалистов оборонного комплекса и инфраструктурных отраслей","07.05.07","07.05"]
["Институт права и развития ВШЭ-Сколково","05.81","05.81"]
["институт правовых исследований","02.04.16","02.04"]
["Институт практической психологии","07.03.09","07.03"]
["Институт прикладных политических исследований","05.65","05.65"]
["Институт проблем административно-правового регулирования","05.76","05.76"]
["Институт проблем безопасности","05.62","05.62"]
["Институт проблем ценообразования и регулирования естественных монополий","05.03","05.03"]
["Институт профессиональной переподготовки специалистов","07.03.02","07.03"]
["институт региональных исследований и городского планирования","02.33.05","02.33"]
["Институт социальной политики","05.86","05.86"]
["Институт статистических исследований и экономики знаний","05.15","05.15"]
["Институт строительства и жилищно-коммунального хозяйства ГАСИС","05.63","05.63"]
["Институт торговой политики","05.20","05.20"]
["Институт управления государственными ресурсами","05.51","05.51"]
["Институт экологии","05.75","05.75"]
["Институт экономики здравоохранения","05.46","05.46"]
["институт экономики транспорта и транспортной политики","02.33.03","02.33"]
["Институт энергетики","05.68","05.68"]
["Информационно-рейтинговый центр","01.97","01.97"]
["Кафедра высшей математики","02.08.02","02.08"]
["кафедра демографии","05.04.03","05.04"]
["Кафедра менеджмента инноваций","02.31","02.31"]
["кафедра проблем безопасности","05.62.02","05.62"]
["кафедра теории и практики взаимодействия бизнеса и власти","02.12.03","02.12"]
["кафедра технологий моделирования сложных систем","02.26.11","02.26"]
["кафедра торговой политики","05.20.01","05.20"]
["Кафедра физического воспитания","02.08.06","02.08"]
["Комбинат общественного питания","04.16","04.16"]
["коммерческий отдел","05.63.02.01","05.63"]
["Культурный центр","03.30","03.30"]
["лаборатория \"Кросс-культурная история литературы\"","05.28.58","05.28"]
["лаборатория \"Математические методы естествознания\"","05.28.66","05.28"]
["Лаборатория алгебраической геометрии и ее приложений","05.49","05.49"]
["лаборатория анализа и прогноза экономических процессов","05.28.13","05.28"]
["лаборатория исследований культуры","05.28.53","05.28"]
["лаборатория компании Самсунг","02.26.03.03.01","02.26"]
["лаборатория лингвосемиотических исследований","02.28.20.01","02.28"]
["Лаборатория по редактированию учебных пособий","03.09","03.09"]
["лаборатория региональных политических исследований","05.28.50","05.28"]
["лаборатория сравнительного анализа развития постсоциалистических обществ","02.01.41","02.01"]
["Лаборатория сравнительных социальных исследований","05.50","05.50"]
["Лаборатория экономико-социологических исследований","05.79","05.79"]
["лаборатория экономических исследований общественного сектора","05.28.04","05.28"]
["лаборатория языков Кавказа","05.28.69","05.28"]
["лингвистическая лаборатория по корпусным технологиям","05.28.63","05.28"]
["Лицей НИУ ВШЭ","02.22","02.22"]
["мандельштамовский центр","02.28.19.02","02.28"]
["Международная лаборатория зеркальной симметрии и автоморфных форм","05.90","05.90"]
["международная лаборатория институционального анализа экономических реформ","05.80.01","05.80"]
["международная лаборатория интеллектуальных систем и структурного анализа","02.26.02.01","02.26"]
["Международная лаборатория исследований населения и здоровья","05.91","05.91"]
["Международная лаборатория исследований русско-европейского интеллектуального диалога","05.92","05.92"]
["Международная лаборатория исследований социальной интеграции","05.52","05.52"]
["Международная лаборатория логики, лингвистики и формальной философии","05.98","05.98"]
["международная лаборатория макроэкономического анализа","02.01.32","02.01"]
["международная лаборатория по праву информационных технологий и интеллектуальной собственности","02.04.22","02.04"]
["Международная лаборатория позитивной психологии личности и мотивации\r\n","05.73","05.73"]
["Международная лаборатория прикладного сетевого анализа\r\n","05.70","05.70"]
["Международная лаборатория региональной истории России","05.67","05.67"]
["Международная лаборатория статистической и вычислительной геномики","05.53","05.53"]
["международная лаборатория стохастических алгоритмов и анализа многомерных данных","02.26.16","02.26"]
["Международная лаборатория стохастического анализа и его приложений\r\n","05.72","05.72"]
["Международная лаборатория суперкомпьютерного атомистического моделирования и многомасштабного анализа","05.93","05.93"]
["международная лаборатория теоретической информатики","02.26.03.02","02.26"]
["Международная лаборатория физики конденсированного состояния","05.89","05.89"]
["Международная лаборатория экспериментальной и поведенческой экономики","05.37","05.37"]
["Международная лаборатория языковой конвергенции","05.94","05.94"]
["международная научно-учебная лаборатория финансовой экономики","07.01.01.06","07.01"]
["Международный институт профессионального статистического образования","05.96","05.96"]
["Международный институт экономики и финансов","07.01.01","07.01"]
["международный научно-образовательный центр комплексных европейских и международных исследований","02.09.10","02.09"]
["Международный центр анализа и выбора решений","05.41","05.41"]
["Международный центр истории и социологии Второй мировой войны и ее последствий","05.83","05.83"]
["Международный центр подготовки кадров в области логистики","07.03.19","07.03"]
["Мероприятия по работе с выпускниками","11.17"]
["Многопрофильные олимпиады школьников","11.27"]
["многофункциональный инновационный телевизионный технический центр","02.25.10","02.25"]
["Московский институт электроники и математики им. А.Н. Тихонова","02.20","02.20"]
["Наукометрический центр","01.78","01.78"]
["научно-консалтинговый центр государственно-частного партнерства и управления инвестициями","05.63.10","05.63"]
["научно-образовательный центр строительного производства и комплексной безопасности объектов строительства","05.63.08","05.63"]
["научно-образовательный центр технологий в строительстве и производстве стройматериалов","05.63.06","05.63"]
["Научно-учебная лаборатория \"Центр фундаментальной социологии\"","05.87","05.87"]
["научно-учебная лаборатория биоинформатики","02.26.03.04","02.26"]
["научно-учебная лаборатория измерения благосостояния","02.01.66","02.01"]
["Научно-учебная лаборатория исследований в области бизнес-коммуникаций","05.82","05.82"]
["научно-учебная лаборатория исследований рынка труда","02.01.35","02.01"]
["научно-учебная лаборатория исследований спорта","02.01.64","02.01"]
["Научно-учебная лаборатория когнитивных исследований","05.78","05.78"]
["научно-учебная лаборатория компании Яндекс","02.26.03.07","02.26"]
["научно-учебная лаборатория корпоративных финансов","02.01.31","02.01"]
["научно-учебная лаборатория лингвистической конфликтологии и современных коммуникативных практик","02.28.19.01","02.28"]
["научно-учебная лаборатория макроструктурного моделирования экономики России","02.01.45","02.01"]
["научно-учебная лаборатория медиевистических исследований","02.28.01.09","02.28"]
["научно-учебная лаборатория методов анализа больших данных","02.26.13","02.26"]
["научно-учебная лаборатория моделирования и управления сложными системами","02.26.03.05","02.26"]
["научно-учебная лаборатория мониторинга рисков социально-политической дестабилизации","02.27.18","02.27"]
["научно-учебная лаборатория по финансовой инженерии и риск-менеджменту","02.01.34","02.01"]
["научно-учебная лаборатория политических исследований","05.65.05","05.65"]
["научно-учебная лаборатория процессно-ориентированных информационных систем","02.26.12","02.26"]
["научно-учебная лаборатория психологии способностей","02.27.02.06","02.27"]
["научно-учебная лаборатория сетевых форм организации","02.29.01.21","02.29"]
["Национальный исследовательский университет Высшая школа экономики","01.03","01.03"]
["Обеспечение работы приемной комиссии","11.11"]
["Оплата экспертов и координаторов","11.12.03"]
["Организационно-контрольное управление","01.67","01.67"]
["отдел информационного моделирования","05.63.05.01","05.63"]
["отдел по обеспечению деятельности проректоров и директоров по направлениям деятельности","01.73.04","01.73"]
["отдел по работе с абитуриентами, студентами и выпускниками","02.26.09","02.26"]
["отдел по работе с данными","05.80.06","05.80"]
["отдел сопровождения магистерских программ","02.26.14","02.26"]
["отдел сопровождения учебного процесса в бакалавриате","02.26.04","02.26"]
["отдел стратегического маркетинга","05.63.01.01","05.63"]
["отдел технического обеспечения","02.26.08","02.26"]
["Планово-финансовое управление","01.08","01.08"]
["Поддержка академ.мобильн.сотр.из центра в филиалы","11.12.06"]
["Поддержка проектов по приоритетной тематике","11.12.08"]
["Правовое управление","01.06","01.06"]
["Проведение студенческой олимпиады","11.28"]
["Программа \"Академическая аспирантура\"","11.34"]
["Программа кадрового резерва","11.04"]
["Проектно-учебная лаборатория \"Бизнес-инкубатор Высшей школы экономики\"","03.26","03.26"]
["проектно-учебная лаборатория \"Развитие университетов\"","05.64.08","05.64"]
["проектно-учебная лаборатория анализа финансовых рынков","02.01.38","02.01"]
["Проектно-учебная лаборатория антикоррупционной политики","03.18","03.18"]
["Проектно-учебная лаборатория дизайна","02.25.03.03","02.25"]
["Проектно-учебная лаборатория муниципального управления ","03.21","03.21"]
["Прочие конференции и семинары, организуемые на базе Государственного университета-Высшей школы экономики","11.26"]
["Прочие расходы","11.12.05"]
["Развитие корпоративного портала","11.21"]
["Развитие культурного центра","11.18"]
["Развитие национальной системы квалификаций и профессиональных стандартов","11.37"]
["Развитие образовательного портала","11.20"]
["Редакция журнала \"Журнал исследований социальной политики\"","03.17","03.17"]
["Редакция журнала \"Психология. Журнал Высшей школы экономики\"","03.16","03.16"]
["редакция Московского математического журнала","02.15.06","02.15"]
["редакция средства массовой информации- электронного международного научного журнала \"Язык и образование\" (\"Journal of Language and Education\")","02.24.10","02.24"]
["редакция средства массовой информации -  междисциплинарного научно-практического журнала  \"Бизнес-информатика\"","02.29.02.18","02.29"]
["Редакция средства массовой информации -  электронного журнала \"Организационная психология\" (\"Organizational psychology\")\r\n","03.27","03.27"]
["Редакция средства массовой информации - \r\nжурнала \"Право. Журнал Высшей школы экономики\"","03.15","03.15"]
["Редакция средства массовой информации - журнала \"Вопросы образования\" (\"Educational Studies Moscow\")","03.10","03.10"]
["редакция средства массовой информации - журнала \"Высшее образование России и ближнего зарубежья\" (\"Higher Education in Russia and Beyond\")","05.80.08","05.80"]
["Редакция средства массовой информации - журнала \"Мир России. Социология. Этнология (Universe of Russia. Sociology. Ethnology)\"","03.22","03.22"]
["редакция средства массовой информации - журнала \"Торговая политика (Trade Policy)\"","05.20.02","05.20"]
["редакция средства массовой информации - международного журнала \"Городские исследования и практики (Urban Studies and Practices)\"","02.33.06","02.33"]
["редакция средства массовой информации - научного журнала \"Коммуникации. Медиа.Дизайн\"","02.25.11","02.25"]
["Редакция средства массовой информации - периодического печатного журнала \"Вестник международных организаций: образование, наука, новая экономика (International Organisations Research Journal)»","03.28","03.28"]
["редакция средства массовой информации - электронного журнала \"Демографическое обозрение\"","05.04.05","05.04"]
["Редакция средства массовой информации – журнала «Acta Naturae» (Акта Натура)","03.29","03.29"]
["Редакция средства массовой информации – журнала «Вопросы государственного и муниципального управления (Public Administration Issues)»","03.02","03.02"]
["секретариат научного руководителя","01.73.02","01.73"]
["Секретариат попечительского совета","01.77","01.77"]
["секретариат президента","01.73.01","01.73"]
["секретариат ректора","01.73.03","01.73"]
["Секретариат университета","01.73","01.73"]
["Софинансирование грандов РФФИ, РГНФ","11.12.07"]
["Спортивные мероприятия","11.23"]
["Студенческие мероприятия","11.16"]
["Типография","03.23","03.23"]
["Управление академических исследований","01.38","01.38"]
["Управление академического развития","01.60","01.60"]
["Управление академической экспертизы","01.79","01.79"]
["Управление аспирантуры и докторантуры","01.49","01.49"]
["Управление бухгалтерского учета","01.07","01.07"]
["Управление делами","01.04","01.04"]
["Управление инновационной деятельности","01.68","01.68"]
["Управление интеграционных решений","03.34","03.34"]
["Управление материально-технического обеспечения","04.04","04.04"]
["Управление международного сотрудничества","01.94","01.94"]
["Управление образовательных инноваций и специальных международных программ","01.99","01.99"]
["Управление персонала","01.36","01.36"]
["Управление по организации и сопровождению мероприятий","01.74","01.74"]
["Управление по организации олимпиады \"Я - профессионал\"","01.90","01.90"]
["Управление по работе с абитуриентами","01.42","01.42"]
["Управление по сопровождению деятельности международных лабораторий","01.89","01.89"]
["Управление развития учетных систем","01.84","01.84"]
["Управление регламентации и бизнес-аналитики","01.81","01.81"]
["Управление социальной сферы","01.33","01.33"]
["Управление транспортного обеспечения","04.13","04.13"]
["Управление цифровизации образования","03.32","03.32"]
["Учебно-методический Центр \"Бухгалтерский учет и аудит\"","07.03.01","07.03"]
["учебно-методический центр преподавания русского языка как иностранного","02.28.12.01","02.28"]
["учебный центр","05.63.12","05.63"]
["факультет бизнеса и менеджмента","02.29","02.29"]
["факультет биологии и биотехнологии","02.35","02.35"]
["факультет географии и геоинформационных технологий","02.37","02.37"]
["факультет городского и регионального развития","02.33","02.33"]
["факультет гуманитарных наук","02.28","02.28"]
["Факультет довузовской подготовки","07.04.02","07.04"]
["факультет коммуникаций, медиа и дизайна","02.25","02.25"]
["факультет компьютерных наук","02.26","02.26"]
["факультет математики","02.15","02.15"]
["факультет мировой экономики и мировой политики","02.09","02.09"]
["факультет права","02.04","02.04"]
["факультет социальных наук","02.27","02.27"]
["факультет физики","02.30","02.30"]
["факультет химии","02.34","02.34"]
["факультет экономических наук","02.01","02.01"]
["ФДП","11.29"]
["Финансирование обучения работников ВШЭ в зарубежных университетах","11.31"]
["Финансирование Пост-доков","11.36"]
["Центр \"Федеральный методический центр по финансовой грамотности системы общего и среднего профессионального образования\"","07.03.21","07.03"]
["Центр административного обеспечения деятельности первого проректора","01.76","01.76"]
["Центр внутреннего мониторинга","05.45","05.45"]
["центр глубинного обучения и байесовских методов","02.26.03.03","02.26"]
["Центр информационной безопасности","01.63","01.63"]
["Центр исследований гражданского общества и некоммерческого сектора","05.36","05.36"]
["Центр исследований структурной политики","05.74","05.74"]
["Центр корпоративного управления","07.05.06","07.05"]
["Центр музыкальных проектов","01.86","01.86"]
["Центр научной интеграции","01.59","01.59"]
["центр непрерывного образования","02.26.15","02.26"]
["Центр организации взаимодействия с ассоциациями ведущих университетов России","01.75","01.75"]
["центр планирования и проектирования инфраструктуры и городской среды","02.33.04","02.33"]
["Центр повышения квалификации","03.13","03.13"]
["Центр политики в сфере здравоохранения","05.69","05.69"]
["центр продаж","05.63.02","05.63"]
["Центр развития онлайн обучения","07.03.22","07.03"]
["центр развития социологического образования","02.27.03.09","02.27"]
["Центр социального предпринимательства и социальных инноваций","05.60","05.60"]
["Центр социокультурных исследований","05.61","05.61"]
["центр сравнительного права","02.04.17","02.04"]
["центр студенческих олимпиад","02.26.06","02.26"]
["Центр технологического трансфера","05.99","05.99"]
["Центр трудовых исследований","05.12","05.12"]
["Центр университетского партнерства","01.66","01.66"]
["Центр фундаментальных исследований","05.28","05.28"]
["Центр цифровой трансформации","01.64","01.64"]
["Центр цифровых культур и медиаграмотности","07.03.23","07.03"]
["Центр экономики окружающей среды и природных ресурсов","05.06","05.06"]
["Центр языка и мозга","05.84","05.84"]
["центр языковой подготовки","02.24.08","02.24"]
["Школа дизайна","02.25.03","02.25.03"]
["Школа маркетинговых исследований","02.27.27","02.27"]
["Экспертный институт","05.43","05.43"]

{"sheet":"Должности","index":6,"n_rows":627,"n_cols":2,"rows_kept":627,"cut":false,"hidden":true,"merged":[]}
["Наименование должности","Код должности"]
[]
["Агент коммерческий",932]
["Агент по снабжению",963]
["Агент торговый",10052]
["Административный директор",56]
["Администратор-кассир",1051]
["Администратор",885]
["Администратор дежурной службы охраны",1144]
["Администратор дежурный",996]
["Аналитик",961]
["Аналитик 1 категории",10030]
["Архивариус",1021]
["Архитектор",10085]
["Ассистент",602]
["Ассистент звукорежиссера",10021]
["Ассоциированный сотрудник",10123]
["Аудитор",974]
["Бармен",1052]
["Библиограф",745]
["Библиограф 1 категории",695]
["Библиотекарь",1]
["Библиотекарь 1 категории",747]
["Библиотекарь 2 категории",748]
["Буфетчик",1053]
["Бухгалтер-кассир",1054]
["Бухгалтер",61]
["Бухгалтер 1 категории",62]
["Бухгалтер 2 категории",65]
["Вахтер",1030]
["Веб-мастер",784]
["Ведущий аналитик",977]
["Ведущий архитектор",10084]
["Ведущий аудитор",968]
["Ведущий библиограф",751]
["Ведущий библиотекарь",749]
["Ведущий бухгалтер",3]
["Ведущий дизайнер",1026]
["Ведущий инженер-программист",810]
["Ведущий инженер-сметчик",10130]
["Ведущий инженер",699]
["Ведущий инженер по охране труда",1113]
["Ведущий инженер по охране труда и технике безопасн",1025]
["Ведущий инспектор по кадрам",10018]
["Ведущий консультатнт",828]
["Ведущий математик-программист",700]
["Ведущий математик",1105]
["Ведущий научный сотрудник",776]
["Ведущий программист",790]
["Ведущий психолог",844]
["Ведущий редактор",910]
["Ведущий специалист",705]
["Ведущий специалист по кадрам",10017]
["Ведущий специалист по кадровому делопроизводству",10087]
["Ведущий специалист по охране труда",10070]
["Ведущий специалист по связям с общественностью",1006]
["Ведущий экономист",72]
["Ведущий эксперт",10006]
["Ведущий эксперт по кадрам",1166]
["Ведущий электроник",868]
["Ведущий юрисконсульт",74]
["Вице-президент",10065]
["Водитель-механик",1055]
["Водитель-экспедитор",1056]
["Водитель автомобиля",308]
["Водитель автомобиля 4 разряда",1171]
["Воспитатель",1149]
["Воспитатель",309]
["Врач",1057]
["Выпускающий",909]
["Гардеробщик",311]
["Гардеробщик 1 разряда",1174]
["Главный аналитик",10016]
["Главный архитектор",10081]
["Главный архитектор проекта",10082]
["Главный библиограф",708]
["Главный библиотекарь",709]
["Главный бухгалтер",945]
["Главный диспетчер",959]
["Главный инженер",77]
["Главный инженер проекта",10086]
["Главный механик",78]
["Главный научный сотрудник",777]
["Главный редактор",79]
["Главный специалист",811]
["Главный эксперт",10014]
["Главный энергетик",80]
["Главный юрист",1031]
["Горничная",887]
["Грузчик",916]
["Дворник",312]
["Дворник 1 разряда",1173]
["Дежурный",320]
["Дежурный администратор",922]
["Дежурный бюро пропусков",826]
["Дежурный бюро пропусков",836]
["Дежурный оператор",321]
["Дежурный по зданию",323]
["Дежурный по общежитию",324]
["Дежурный по пожарной безопасности",883]
["Дежурный по этажу",958]
["Декан",477]
["Делопроизводитель",861]
["Дизайнер",863]
["Дир. по программам развития государственной сл",1004]
["Дир. по разв. сотрудн. со странами СНГ и Балтии",1027]
["Директор - руководитель аппарата",10027]
["Директор",84]
["Директор административных зданий",978]
["Директор библиотеки",110]
["Директор института",913]
["Директор Института экономики транспорта и транспор",10064]
["Директор Международного института профессиональног",14]
["Директор перспективных цифровых разработок",10138]
["Директор по аграрной политике",10105]
["Директор по административной работе",864]
["Директор по академическому развитию",953]
["Директор по антикоррупционной политике",10117]
["Директор по безопасности",924]
["Директор по взаимодей. с эк. вед. и бизнес- струк.",1157]
["Директор по взаимодействию с органами власти",10037]
["Директор по взаимодействию с организациями граждан",10022]
["Директор по взаимодействию с регионами",10112]
["Директор по внутр исслед и академ разв студентов",10113]
["Директор по вопросам ВиМП",895]
["Директор по ДПО",892]
["Директор по закупкам",988]
["Директор по земельным отнош. и упр.недвиж.имущ.",10097]
["Директор по инновациям и развитию предпринимат-ва",969]
["Директор по интернационализации",8]
["Директор по информационным ресурсам",1148]
["Директор по информационным технологиям",845]
["Директор по исследованиям в области строительства",10121]
["Директор по исследованиям развития человека",1176]
["Директор по капитальному строительству и ремонту",10101]
["Директор по корпоративным закупкам и торгам",10010]
["Директор по корпоративным проектам",1147]
["Директор по макроэкономическим исследованиям",947]
["Директор по маркетингу образовательных программ",10096]
["Директор по международной деятельности",985]
["Директор по международной образовательной мобильно",10061]
["Директор по международным исследованиям",10137]
["Директор по международным связям",893]
["Директор по микроэкономическим исследованиям",1132]
["Директор по научным исследованиям и разработкам",989]
["Директор по научным проектам",10114]
["Директор по образовательным инновациям",10074]
["Директор по общему образованию",10104]
["Директор по онлайн обучению",10102]
["Директор по организационной работе",971]
["Директор по основным образовательным программам",10099]
["Директор по персоналу",1129]
["Директор по порталам",911]
["Директор по порталу",10060]
["Директор по правовой работе",10028]
["Директор по правовым вопросам",10067]
["Директор по правовым исследованиям",10128]
["Директор по привлечению иностранных студентов",10062]
["Директор по проф.ориентации и работе с одарен.учащ",10098]
["Директор по работе с партнерами",981]
["Директор по работе со студентами и выпускниками",1016]
["Директор по развитию преподавательского мастерства",10106]
["Директор по развитию студенческого потенциала",10103]
["Директор по рогр.разв.ГС",856]
["Директор по связям с общественностью",960]
["Директор по сотрудничеству со странами СНГ, Центра",10041]
["Директор по социальной политике",10042]
["Директор по социальным исследованиям",10043]
["Директор по статистическим исследованиям",10119]
["Директор по управлен. УАО",931]
["Директор по управлению общежитиями",927]
["Директор по управлению общежитиями, гостиницами, у",10059]
["Директор по финансовой работе",833]
["Директор по фундаментальным исследованиям",10063]
["Директор по экономической политике",10072]
["Директор по эксплуатации и текущему ремонту зданий",10054]
["Директор программы развития",986]
["Директор УЦПР",10009]
["Директор филиала",10]
["Директор центра",952]
["Диспетчер",88]
["Диспетчер учебного корпуса",89]
["Диспетчер факультета",998]
["Документовед",1028]
["Должность не определена",9999]
["Доцент",624]
["За штатом",794]
["Заведующий",915]
["Заведующий архивом",1125]
["Заведующий библиотекой",1023]
["Заведующий бюро",1058]
["Заведующий бюро пропусков",901]
["Заведующий кабинетом",879]
["Заведующий канцелярией",1032]
["Заведующий кафе",1059]
["Заведующий кафедрой",880]
["Заведующий лабораторией",111]
["Заведующий мастерской",823]
["Заведующий общежитием",923]
["Заведующий отделением",997]
["Заведующий отделом",567]
["Заведующий по учебной работе",492]
["Заведующий прачечной",1128]
["Заведующий производством",1060]
["Заведующий редакцией",884]
["Заведующий РИО",1033]
["Заведующий секретариатом",935]
["Заведующий секретариатом ректора Секретариата унив",5]
["Заведующий сектором",743]
["Заведующий складом",351]
["Заведующий учебно-методическим кабинетом",714]
["Заведующий учебной лабораторией",819]
["Заведующий учебной мастерской",10088]
["Заведующий учебной частью",827]
["Заведующий хозяйством",493]
["Заведующий центральным складом",115]
["Заведующий центром",903]
["Завхоз - хранитель исторических ценностей",1126]
["Зам. дир. по административно-хозяйственной работе",1160]
["Зам. дир. по дополнительному проф. образованию",1112]
["Зам. дир. по научным исследованиям и разработкам",1000]
["Зам. директора по взаимодействию с органами власти",10038]
["Зам. заведующего учебно-методическим кабинетом",719]
["Зам. нач. учебной части - старший преподаватель",1019]
["Заместитель административного директора",10050]
["Заместитель главного бухгалтера",905]
["Заместитель главного инженера",940]
["Заместитель главного редактора",93]
["Заместитель декана",125]
["Заместитель декана по развитию инфраструктуры",10131]
["Заместитель декана Факультета коммуникаций, медиа",10124]
["Заместитель директора",129]
["Заместитель директора библиотеки",1034]
["Заместитель директора Института образования",2]
["Заместитель директора по аграрной политике",10108]
["Заместитель директора по административной работе",973]
["Заместитель директора по административной работе И",11]
["Заместитель директора по академическому развитию",1005]
["Заместитель директора по взаимодействию с регионам",10127]
["Заместитель директора по международной деятельност",1107]
["Заместитель директора по научным проектам",10115]
["Заместитель директора по организационной работе",972]
["Заместитель директора по персоналу",10076]
["Заместитель директора по работе со студентами и вы",10000]
["Заместитель директора по финансовой работе",979]
["Заместитель директора программы развития",10073]
["Заместитель директора филиала",1151]
["Заместитель директора центра",994]
["Заместитель заведующего библиотекой",1024]
["Заместитель заведующего кафедрой, доцент",1061]
["Заместитель заведующего лабораторией",897]
["Заместитель заведующего общежитием",921]
["Заместитель заведующего отделением",867]
["Заместитель заведующего отделом",1117]
["Заместитель заведующего производством",1139]
["Заместитель заведующего секретариатом",936]
["Заместитель заведующего сектором",1013]
["Заместитель заведующего складом",10005]
["Заместитель заведующего центром",942]
["Заместитель исполнительного директора",859]
["Заместитель научного руководителя",900]
["Заместитель начальника",150]
["Заместитель начальника автогаража",500]
["Заместитель начальника военного учебного центра",10132]
["Заместитель начальника военной кафедры",1018]
["Заместитель начальника гаража",949]
["Заместитель начальника лагеря",1116]
["Заместитель начальника отдела",139]
["Заместитель начальника отдела по кадровому админис",13]
["Заместитель начальника управления",104]
["Заместитель начальника Управления персонала",4]
["Заместитель начальника участка",955]
["Заместитель начальника учебной части",328]
["Заместитель начальника центра",98]
["Заместитель первого проректора",837]
["Заместитель проректора",148]
["Заместитель руководителя",782]
["Заместитель руководителя аппарата",10111]
["Заместитель руководителя департамента",1156]
["Заместитель руководителя центра",1062]
["Заместитель руководителя школы",10026]
["Заместитель старшего директора по взаимодействию с",10055]
["Заместитель старшего директора по финансовой работ",10051]
["Звукооператор",1002]
["Звукорежиссер",925]
["И.о. директора, научный руководитель МИЭМ НИУ ВШЭ",12]
["и.о. заведующий кафедрой, професор",1063]
["и.о. начальника отдела размещения",1064]
["и.о. начальника службы",1079]
["Инженер-исследователь",1111]
["Инженер-конструктор",10001]
["Инженер-программист",726]
["Инженер-программист 1 категории",984]
["Инженер-программист 2 категории",10015]
["Инженер-сметчик",10071]
["Инженер-теплотехник",1121]
["Инженер-технолог",1066]
["Инженер-электрик",1136]
["Инженер-электроник",1135]
["Инженер-энергетик",1067]
["Инженер",725]
["Инженер 1 категории",155]
["Инженер 2 категории",723]
["Инженер линейных соор. связи и аб. устройтв 1 кат.",1017]
["инженер по автоматизации технологий и технического",1065]
["Инженер по качеству",10011]
["Инженер по надзору за строительством",1011]
["Инженер по охране труда",1014]
["Инженер по противопожарной безопасности",1138]
["Инженер по технике безопасности",10019]
["Инженер по техническим средствам обучения",1133]
["Инженер по эксплуатации теплотехнич. оборудования",1007]
["Инспектор отдела кадров",1068]
["Инспектор по кадрам",906]
["Инспектор по кадрам 1 категории",10002]
["Инспектор по кадрам 2 категории",10003]
["Инспектор по контролю за исполнением поручений",912]
["Инструктор по противопожарной профилактике",920]
["Исполнительный директор",511]
["Исполняющий обязанности главного бухгалтера",1037]
["Исполняющий обязанности заведующего кафедрой",1036]
["Исполняющий обязанности ректора",1035]
["Калькулятор",10032]
["Кассир",1069]
["Кастелянша",369]
["Кладовщик",372]
["Комендант",374]
["Компьютерный дизайнер",512]
["Консультант",574]
["Контент-менеджер",10079]
["Контролер-кассир",10035]
["Координатор международных программ",167]
["Координатор научных программ",839]
["Координатор образовательных программ",850]
["Копирайтер",10080]
["Копировальщик печатных форм",375]
["Корректор",376]
["Корреспондент",914]
["Косметолог",1070]
["Котлочист",1071]
["Кровельщик",758]
["Культорганизатор",983]
["Курьер",10023]
["Кухонный рабочий",10008]
["Лаборант",640]
["Лифтер",20]
["Маляр",377]
["Маляр 5 разряда",1169]
["Мастер",378]
["Мастер маникюра",1072]
["Мастер по экспл-ции и ремонту газ. оборудования",1137]
["Мастер производственного об. вождению боевых машин",999]
["Математик",1108]
["Математик 1 категории",1038]
["Математик 2 категории",1039]
["Машинист фальц.и лист.маш",379]
["Медицинская сестра",1073]
["Медсестра",10031]
["Менеджер",21]
["Менеджер по рекламе",946]
["Менеджер по связям с общественностью",10007]
["Менеджер программ",889]
["Менеджер проекта",854]
["Методист",517]
["Методист 1 категории",783]
["Методист 2 категории",878]
["Методист 2 категории",1161]
["Методист высшей категории",1162]
["Методист высшей категории",178]
["Механик",519]
["Младший научный сотрудник",576]
["Мойщик",990]
["Мойщик посуды",10034]
["Мойщица посуды",1074]
["Монтажер",10020]
["Наладчик полиграфического оборудования",384]
["Научный редактор",182]
["Научный руководитель",580]
["Научный руководитель (гл.н.с.)",1075]
["Научный руководитель направления",10057]
["Научный руководитель по лицейским программам",10068]
["Научный руководитель по направлению",10075]
["Научный сотрудник",772]
["Нач. отделения учебной и тренировочной аппаратуры",992]
["Нач. учебной части - Зам. нач. военной кафедедры",843]
["Нач. цикла военной кафедры - старший преподаватель",820]
["Начальник",886]
["Начальник авторемонтного участка",1143]
["Начальник автохозяйства",1127]
["Начальник административно-контрольного управления",1076]
["Начальник военного учебного центра",10133]
["Начальник военной кафедры",1015]
["Начальник ВУС",227]
["Начальник гаража",521]
["Начальник издательства",1077]
["Начальник кафедры",817]
["Начальник лагеря",1115]
["Начальник отдела",208]
["Начальник отдела по кадровому администрированию",6]
["Начальник отдела по работе с международными специа",7]
["Начальник отдела развития и мотивации персонала",9]
["Начальник отделения",851]
["Начальник отделения учета",10089]
["Начальник сектора",1078]
["Начальник службы",1145]
["Начальник студии",846]
["Начальник типографии",209]
["начальник транспортной службы",1080]
["Начальник управления",214]
["Начальник участка",215]
["Начальник учебной части- заместитель начальника во",10134]
["Начальник учебной части",528]
["Начальник центра",218]
["Начальник цикла- старший преподаватель",10135]
["Начальник штаба",224]
["Начальник эксплуатационного участка",1146]
["НЕ ИСПОЛЬЗОВАТЬ Начальник учебной части",387]
["Облицовщик-плиточник",759]
["Обозреватель",930]
["Оператор диспетчерской службы",962]
["Оператор копировальных и множительных машин",390]
["Оператор стиральных машин",1040]
["Оператор теплового пункта",1081]
["Оператор электронно-вычислительных и вычислительны",28]
["Ответственный редактор",928]
["Ответственный секретарь",388]
["Официант",1082]
["Парикмахер",786]
["Паркетчик",392]
["Паспортист",762]
["Педагог-организатор",10107]
["Педагог-психолог",1163]
["Пекарь",10033]
["Первый заместитель декана",781]
["Первый заместитель директора",1152]
["Первый заместитель руководителя",809]
["Первый проректор",45]
["Переплетчик",755]
["Печатник плоской печати",394]
["Плотник",396]
["Повар",1083]
["Повар 6 разряда",1084]
["Подсобный рабочий",402]
["Подсобный рабочий 1 разряда",1172]
["Помощник",584]
["Помощник директора",531]
["Помощник научного руководителя",586]
["Помощник первого проректора",236]
["Помощник президента",237]
["Помощник президента ГАСИС",10078]
["Помощник проректора",238]
["Помощник ректора -  пресс-секретарь",1085]
["Помощник ректора",239]
["Помощник старшего директора",10049]
["посудомойщица",1086]
["Президент",240]
["Президент ГАСИС",10077]
["Преподаватель",654]
["Пресс-секретарь",10056]
["Пресс-секретарь ректора",10120]
["Программист",773]
["Программист 1 категории",1041]
["Программист 2 категории",1042]
["Продюсер",10047]
["Проректор",244]
["Профессор-исследователь",965]
["Профессор",662]
["Психолог",967]
["Психолог 1 категории",873]
["Рабочий",1043]
["Рабочий  6-го разряда",1087]
["Рабочий высокой квалификации",1088]
["Рабочий по комплексному обслуживанию и ремонту зда",406]
["радиомеханик",1134]
["Радиомеханик по обслуживанию и ремонту радиотелеви",1089]
["Редактор",841]
["Редактор 1 категории",1109]
["Режиссер видеомонтажа",1001]
["Ректор",254]
["Референт",255]
["Руководитель",264]
["Руководитель аппарата",10110]
["Руководитель группы",10013]
["Руководитель департамента",1155]
["Руководитель коллектива",926]
["Руководитель лаборатории",1090]
["Руководитель проекта",1091]
["Руководитель проектной группы",10083]
["Руководитель секретариата",589]
["Руководитель сектора",853]
["Руководитель службы",10093]
["Руководитель службы безопасности",1092]
["Руководитель студии",993]
["Руководитель УПП",1044]
["Руководитель центра",591]
["Руководитель школы",10025]
["Садовник",1130]
["Секретарь",30]
["Секретарь проректора",1093]
["Секретарь учебной части",410]
["Системный архитектор",10126]
["Слесарь-ремонтник",1045]
["Слесарь-сантехник",411]
["Слесарь-сантехник 4 разряда",1167]
["Слесарь-электрик по ремонту электрооборудования",1095]
["Слесарь",1124]
["Слесарь по обслуживанию тепловых пунктов",1122]
["Слесарь по ремонту и обслуживанию систем вентиляци",1094]
["Советник",848]
["Советник ректора",10053]
["Социальный педагог",10029]
["Специалист-культуролог",1097]
["Специалист",736]
["Специалист 1 категории",898]
["Специалист 2 категории",792]
["Специалист по ведению воинского учета",1096]
["Специалист по защите информации",10024]
["Специалист по кадрам",918]
["Специалист по кадрам 1 категории",1114]
["Специалист по кадрам 2 категории",10004]
["Специалист по кадровому делопроизводству",10092]
["Специалист по маркетингу",966]
["Специалист по маркетингу 1 категории",951]
["Специалист по охране труда",10069]
["Специалист по персоналу",10095]
["Специалист по подбору персонала",10094]
["Специалист по развитию и обучению персонала",10129]
["Специалист по связям с общественностью",976]
["Специалист по связям с общественностью 2 категории",1140]
["Специалист по УМР 1 кат.",939]
["Специалист по УМР 2 кат.",937]
["Специалист по УМР высш. кат.",938]
["Специалист по учебно-методической работе",934]
["Специалист по учету",10090]
["Специальный корреспондент",970]
["Ст. директор по взаимодействию с органами власти",10045]
["Ст. инспектор по контролю за исполнением поручений",1022]
["Стажер-исследователь",908]
["Старшая горничная",1098]
["Старший администратор",888]
["Старший администратор дежурный",1008]
["Старший дежурный",416]
["Старший дежурный по общежитию",995]
["Старший директор по административной работе",10040]
["Старший директор по инновационной политике",10136]
["Старший директор по информационной политике",10118]
["Старший директор по информационным технологиям",10039]
["Старший директор по основным образовательным прогр",10109]
["Старший директор по связям с общественностью",10046]
["Старший директор по стратегическому развитию",10116]
["Старший директор по финансовой работе",10044]
["Старший директор по цифровой трансформации",10122]
["Старший диспетчер",273]
["Старший инженер",991]
["Старший инспектор",975]
["Старший инспектор охраны",422]
["Старший инспектор по кадрам",904]
["Старший инструктор",849]
["Старший кассир",1154]
["Старший лаборант",737]
["Старший методист",1123]
["Старший научный сотрудник",775]
["Старший по смене",1046]
["Старший помощник ректора",10091]
["Старший преподаватель",670]
["Старший садовник",1131]
["Старший системный архитектор",10125]
["Старший сторож (вахтер)",1120]
["Статистик",10036]
["Стекольщик",426]
["Столяр",427]
["Столяр 5 разряда",1170]
["Сторож (вахтер)",430]
["Телефонист",874]
["Теплотехник",435]
["Техник-программист",10012]
["Техник-смотритель",919]
["Техник-смотритель 1 категории",442]
["Техник",276]
["Техник 1 категории",595]
["Техник 2 категории",278]
["Техник по связи",444]
["Техник по связи 1 категории",445]
["Техник связи (АТС) 1 категории",1010]
["Технический редактор",740]
["Товаровед",891]
["Тракторист-машинист",1020]
["Тьютор",10066]
["Уборщик",1047]
["Уборщик мусоропроводов",1119]
["Уборщик производственных и служебных помещений",1118]
["Уборщик служебных помещений",452]
["Уборщик служебных помещений 1 разряда",1175]
["Учебный мастер",1048]
["Учебный мастер 2 категории",1110]
["Ученый секретарь",282]
["Фельдшер",10048]
["Фонд подразделения",9998]
["Художественный редактор",741]
["Художественный руководитель",980]
["Художник-оформитель",1099]
["Художник",954]
["Художник по свету",1003]
["Швея",1100]
["Шеф-редактор",1106]
["Штукатур",457]
["экономист-аналитик",1101]
["Экономист",283]
["Экономист 1 категории",1141]
["Экономист 2 категории",982]
["Экспедитор",459]
["Эксперт",553]
["Эксперт 1 категории",1164]
["Эксперт 2 категории",1165]
["Электрик",1142]
["Электрогазосварщик",462]
["Электромеханик по лифтам",1009]
["Электромонтер",1153]
["Электромонтер линейных сооружений телефонной связи",1102]
["Электромонтер по ремонту и обсл. эл. оборудования",41]
["Электромонтер по ремонту и обсл. электрооб. 4 разр",1168]
["Электроник",1049]
["Электроник 1 категории",1050]
["Электроник 2 категории",463]
["Юрисконсульт",797]
["Юрисконсульт 1 категории",944]
["Юрисконсульт 2 категории",285]